Workbook

Sheet 2018年
A1: 生产过程产生的固体废物利用及处置情况（按日填写）股份
A2: 日期 | B2: 固 体 废 物 名 称 | C2: 数量（吨） | D2: 利 用 情 况 | F2: 处 置 情 况 | H2: 累计存储数量（吨） | I2: 记录人签字
D3: 利用数量 | E3: 去 向 | F3: 处置数量 | G3: 去 向
D4: （吨） | F4: （吨）
A5: 2018-01-01 | B5: 废包装桶 | J5: 2017年 | L5: 2017年
A6: 2018-01-02 | B6: 废包装桶 | J6: 2吨 | L6: 2吨
A7: 2018-01-03 | B7: 废包装桶
A8: 2018-01-04 | B8: 废包装桶
A9: 2018-01-05 | B9: 废包装桶
A10: 2018-01-06 | B10: 废包装桶
A11: 2018-01-07 | B11: 废包装桶
A12: 2018-01-08 | B12: 废包装桶
A13: 2018-01-09 | B13: 废包装桶
A14: 2018-01-10 | B14: 废包装桶
A15: 2018-01-11 | B15: 废包装桶
A16: 2018-01-12 | B16: 废包装桶
A17: 2018-01-13 | B17: 废包装桶
A18: 2018-01-14 | B18: 废包装桶
A19: 2018-01-15 | B19: 废包装桶
A20: 2018-01-16 | B20: 废包装桶
A21: 2018-01-17 | B21: 废包装桶
A22: 2018-01-18 | B22: 废包装桶
A23: 2018-01-19 | B23: 废包装桶
A24: 2018-01-20 | B24: 废包装桶
A25: 2018-01-21 | B25: 废包装桶
A26: 2018-01-22 | B26: 废包装桶
A27: 2018-01-23 | B27: 废包装桶
A28: 2018-01-24 | B28: 废包装桶
A29: 2018-01-25 | B29: 废包装桶
A30: 2018-01-26 | B30: 废包装桶
A31: 2018-01-27 | B31: 废包装桶
A32: 2018-01-28 | B32: 废包装桶
A33: 2018-01-29 | B33: 废包装桶
A34: 2018-01-30 | B34: 废包装桶 | C34: 0.355 | F34: 2.1 | G34: 湖州南太湖资源回收有限公司 | H34: =2+0.355-2.1 -> 0.255 | I34: 方剑其
A35: 2018-01-31 | B35: 废包装桶
A36: 合计 | C36: =C34 -> 0.355 | F36: =F34 -> 2.1 | H36: =H34 -> 0.255
A37: 备注：2017年7月24日起开始统计
A40: 2018-02-01 | B40: 废包装桶
A41: 2018-02-02 | B41: 废包装桶
A42: 2018-02-03 | B42: 废包装桶
A43: 2018-02-04 | B43: 废包装桶
A44: 2018-02-05 | B44: 废包装桶
A45: 2018-02-06 | B45: 废包装桶
A46: 2018-02-07 | B46: 废包装桶
A47: 2018-02-08 | B47: 废包装桶
A48: 2018-02-09 | B48: 废包装桶
A49: 2018-02-10 | B49: 废包装桶
A50: 2018-02-11 | B50: 废包装桶
A51: 2018-02-12 | B51: 废包装桶
A52: 2018-02-13 | B52: 废包装桶
A53: 2018-02-14 | B53: 废包装桶
A54: 2018-02-15 | B54: 废包装桶
A55: 2018-02-16 | B55: 废包装桶
A56: 2018-02-17 | B56: 废包装桶
A57: 2018-02-18 | B57: 废包装桶
A58: 2018-02-19 | B58: 废包装桶
A59: 2018-02-20 | B59: 废包装桶
A60: 2018-02-21 | B60: 废包装桶
A61: 2018-02-22 | B61: 废包装桶
A62: 2018-02-23 | B62: 废包装桶
A63: 2018-02-24 | B63: 废包装桶
A64: 2018-02-25 | B64: 废包装桶
A65: 2018-02-26 | B65: 废包装桶
A66: 2018-02-27 | B66: 废包装桶
A67: 2018-02-28 | B67: 废包装桶
B68: 废包装桶
B69: 废包装桶
B70: 废包装桶
A71: 合计 | C71: =0 -> 0 | F71: 0 | H71: =H36 -> 0.255
A73: 2018-03-01 | B73: 废包装桶
A74: 2018-03-02 | B74: 废包装桶
A75: 2018-03-03 | B75: 废包装桶
A76: 2018-03-04 | B76: 废包装桶
A77: 2018-03-05 | B77: 废包装桶
A78: 2018-03-06 | B78: 废包装桶
A79: 2018-03-07 | B79: 废包装桶
A80: 2018-03-08 | B80: 废包装桶
A81: 2018-03-09 | B81: 废包装桶
A82: 2018-03-10 | B82: 废包装桶
A83: 2018-03-11 | B83: 废包装桶
A84: 2018-03-12 | B84: 废包装桶
A85: 2018-03-13 | B85: 废包装桶
A86: 2018-03-14 | B86: 废包装桶
A87: 2018-03-15 | B87: 废包装桶
A88: 2018-03-16 | B88: 废包装桶
A89: 2018-03-17 | B89: 废包装桶
A90: 2018-03-18 | B90: 废包装桶
A91: 2018-03-19 | B91: 废包装桶
A92: 2018-03-20 | B92: 废包装桶
A93: 2018-03-21 | B93: 废包装桶
A94: 2018-03-22 | B94: 废包装桶
A95: 2018-03-23 | B95: 废包装桶
A96: 2018-03-24 | B96: 废包装桶
A97: 2018-03-25 | B97: 废包装桶
A98: 2018-03-26 | B98: 废包装桶
A99: 2018-03-27 | B99: 废包装桶
A100: 2018-03-28 | B100: 废包装桶
A101: 2018-03-29 | B101: 废包装桶
A102: 2018-03-30 | B102: 废包装桶
A103: 2018-03-31 | B103: 废包装桶
A104: 合计 | C104: 0 | F104: 0 | H104: =H71 -> 0.255
A106: 2018-04-01 | B106: 废包装桶
A107: 2018-04-02 | B107: 废包装桶
A108: 2018-04-03 | B108: 废包装桶
A109: 2018-04-04 | B109: 废包装桶
A110: 2018-04-05 | B110: 废包装桶
A111: 2018-04-06 | B111: 废包装桶
A112: 2018-04-07 | B112: 废包装桶
A113: 2018-04-08 | B113: 废包装桶
A114: 2018-04-09 | B114: 废包装桶
A115: 2018-04-10 | B115: 废包装桶
A116: 2018-04-11 | B116: 废包装桶
A117: 2018-04-12 | B117: 废包装桶
A118: 2018-04-13 | B118: 废包装桶
A119: 2018-04-14 | B119: 废包装桶
A120: 2018-04-15 | B120: 废包装桶
A121: 2018-04-16 | B121: 废包装桶
A122: 2018-04-17 | B122: 废包装桶
A123: 2018-04-18 | B123: 废包装桶
A124: 2018-04-19 | B124: 废包装桶 | C124: 1.246 | F124: 1.36 | G124: 湖州南太湖资源回收有限公司 | H124: 0.141 | I124: 方剑其
A125: 2018-04-20 | B125: 废包装桶
A126: 2018-04-21 | B126: 废包装桶
A127: 2018-04-22 | B127: 废包装桶
A128: 2018-04-23 | B128: 废包装桶 | C128: 2.45 | F128: 2.45 | G128: 湖州南太湖资源回收有限公司 | H128: 0.141 | I128: 方剑其
A129: 2018-04-24 | B129: 废包装桶
A130: 2018-04-25 | B130: 废包装桶
A131: 2018-04-26 | B131: 废包装桶
A132: 2018-04-27 | B132: 废包装桶
A133: 2018-04-28 | B133: 废包装桶
A134: 2018-04-29 | B134: 废包装桶
A135: 2018-04-30 | B135: 废包装桶
A137: 合计 | C137: =SUM(C106:C136) -> 3.696 | F137: =SUM(F106:F136) -> 3.81 | H137: =H128 -> 0.141
A138: 2018-05-01 | B138: 废包装桶
A139: 2018-05-02 | B139: 废包装桶
A140: 2018-05-03 | B140: 废包装桶
A141: 2018-05-04 | B141: 废包装桶
A142: 2018-05-05 | B142: 废包装桶
A143: 2018-05-06 | B143: 废包装桶
A144: 2018-05-07 | B144: 废包装桶
A145: 2018-05-08 | B145: 废包装桶
A146: 2018-05-09 | B146: 废包装桶
A147: 2018-05-10 | B147: 废包装桶
A148: 2018-05-11 | B148: 废包装桶
A149: 2018-05-12 | B149: 废包装桶
A150: 2018-05-13 | B150: 废包装桶
A151: 2018-05-14 | B151: 废包装桶
A152: 2018-05-15 | B152: 废包装桶
A153: 2018-05-16 | B153: 废包装桶
A154: 2018-05-17 | B154: 废包装桶
A155: 2018-05-18 | B155: 废包装桶
A156: 2018-05-19 | B156: 废包装桶
A157: 2018-05-20 | B157: 废包装桶
A158: 2018-05-21 | B158: 废包装桶
A159: 2018-05-22 | B159: 废包装桶
A160: 2018-05-23 | B160: 废包装桶
A161: 2018-05-24 | B161: 废包装桶
A162: 2018-05-25 | B162: 废包装桶
A163: 2018-05-26 | B163: 废包装桶
A164: 2018-05-27 | B164: 废包装桶
A165: 2018-05-28 | B165: 废包装桶
A166: 2018-05-29 | B166: 废包装桶
A167: 2018-05-30 | B167: 废包装桶
A168: 2018-05-31 | B168: 废包装桶
A169: 合计 | C169: 0 | F169: 0 | H169: 0.141
A170: 2018-06-01 | B170: 废包装桶
A171: 2018-06-02 | B171: 废包装桶
A172: 2018-06-03 | B172: 废包装桶
A173: 2018-06-04 | B173: 废包装桶
A174: 2018-06-05 | B174: 废包装桶
A175: 2018-06-06 | B175: 废包装桶
A176: 2018-06-07 | B176: 废包装桶
A177: 2018-06-08 | B177: 废包装桶
A178: 2018-06-09 | B178: 废包装桶
A179: 2018-06-10 | B179: 废包装桶
A180: 2018-06-11 | B180: 废包装桶
A181: 2018-06-12 | B181: 废包装桶
A182: 2018-06-13 | B182: 废包装桶 | C182: 0.631 | H182: =H169+C182 -> 0.772 | I182: 方剑其
A183: 2018-06-14 | B183: 废包装桶
A184: 2018-06-15 | B184: 废包装桶
A185: 2018-06-16 | B185: 废包装桶
A186: 2018-06-17 | B186: 废包装桶
A187: 2018-06-18 | B187: 废包装桶
A188: 2018-06-19 | B188: 废包装桶
A189: 2018-06-20 | B189: 废包装桶
A190: 2018-06-21 | B190: 废包装桶
A191: 2018-06-22 | B191: 废包装桶
A192: 2018-06-23 | B192: 废包装桶
A193: 2018-06-24 | B193: 废包装桶
A194: 2018-06-25 | B194: 废包装桶
A195: 2018-06-26 | B195: 废包装桶
A196: 2018-06-27 | B196: 废包装桶
A197: 2018-06-28 | B197: 废包装桶
A198: 2018-06-29 | B198: 废包装桶
A199: 2018-06-30 | B199: 废包装桶
A201: 合计 | C201: =SUM(C170:C200) -> 0.631 | F201: =SUM(F170:F200) -> 0 | H201: =H182 -> 0.772
A202: 2018-07-01 | B202: 废包装桶
A203: 2018-07-02 | B203: 废包装桶
A204: 2018-07-03 | B204: 废包装桶
A205: 2018-07-04 | B205: 废包装桶
A206: 2018-07-05 | B206: 废包装桶
... 185 more rows

Sheet 2018年月度统计
A1: 生产过程产生的固体废物利用及处置情况（按日填写）股份 ( 2018)
A2: 日期 | B2: 固 体 废 物 名 称 | C2: 数量（吨） | D2: 利 用 情 况 | F2: 处 置 情 况 | H2: 累计存储数量（吨） | I2: 记录人签字
D3: 利用数量 | E3: 去 向 | F3: 处置数量 | G3: 去 向
D4: （吨） | F4: （吨） | J4: 201712
A5: 1月份 | B5: 废包装桶 | C5: ='2018年 '!C36 -> 0.355 | F5: ='2018年 '!F36 -> 2.1 | G5: ='2018年 '!G34 -> 湖州南太湖资源回收有限公司 | H5: ='2018年 '!H36 -> 0.255 | I5: 方剑其 | J5: 2吨
A6: 2月份 | B6: 废包装桶 | C6: ='2018年 '!C71 -> 0 | F6: ='2018年 '!F71 -> 0 | H6: =H5 -> 0.255 | I6: 方剑其
A7: 3月份 | B7: 废包装桶 | C7: ='2018年 '!D104 -> 0 | F7: ='2018年 '!F104 -> 0 | H7: =H6 -> 0.255 | I7: 方剑其
A8: 4月份 | B8: 废包装桶 | C8: ='2018年 '!C137 -> 3.696 | F8: ='2018年 '!F137 -> 3.81 | G8: ='2018年 '!G124 -> 湖州南太湖资源回收有限公司 | H8: ='2018年 '!H137 -> 0.141 | I8: 方剑其
A9: 5月份 | B9: 废包装桶 | C9: ='2018年 '!C169 -> 0 | F9: ='2018年 '!F169 -> 0 | H9: ='2018年 '!H169 -> 0.141 | I9: 方剑其
A10: 6月份 | B10: 废包装桶 | C10: ='2018年 '!C201 -> 0.631 | F10: ='2018年 '!F201 -> 0 | H10: ='2018年 '!H201 -> 0.772 | I10: 方剑其
A11: 7月份 | B11: 废包装桶 | C11: ='2018年 '!C233 -> 1.325 | F11: ='2018年 '!F233 -> 2 | G11: ='2018年 '!G221 -> 湖州南太湖资源回收有限公司 | H11: ='2018年 '!H233 -> 0.097 | I11: 方剑其
A12: 8月份 | B12: 废包装桶 | C12: ='2018年 '!C265 -> 1.323 | F12: ='2018年 '!F265 -> 1.42 | G12: ='2018年 '!G264 -> 湖州南太湖资源回收有限公司 | H12: ='2018年 '!H265 -> 0 | I12: 方剑其
A13: 9月份 | B13: 废包装桶 | C13: ='2018年 '!C297 -> 0 | F13: ='2018年 '!F297 -> 0 | H13: ='2018年 '!H297 -> 0 | I13: 方剑其
A14: 10月份 | B14: 废包装桶 | C14: ='2018年 '!C329 -> 0 | F14: ='2018年 '!F329 -> 0 | H14: ='2018年 '!H329 -> 0 | I14: 方剑其
A15: 11月份 | B15: 废包装桶 | C15: ='2018年 '!C361 -> 2.88 | F15: ='2018年 '!F361 -> 2.88 | G15: =G12 -> 湖州南太湖资源回收有限公司 | H15: ='2018年 '!H361 -> 0 | I15: 方剑其
A16: 12月份 | B16: 废包装桶 | C16: ='2018年 '!C393 -> 0.306 | F16: ='2018年 '!F393 -> 0 | H16: ='2018年 '!H393 -> 0.306 | I16: 方剑其
A17: 合计 | C17: =SUM(C5:C16) -> 10.516 | F17: =SUM(F5:F16) -> 12.21 | H17: =H16 -> 0.306

Sheet 2019年
A1: 生产过程产生的固体废物利用及处置情况（按日填写）股份
A2: 日期 | B2: 固 体 废 物 名 称 | C2: 数量（吨） | D2: 利 用 情 况 | F2: 处 置 情 况 | H2: 累计存储数量（吨） | I2: 记录人签字
D3: 利用数量 | E3: 去 向 | F3: 处置数量 | G3: 去 向
D4: （吨） | F4: （吨）
A5: 2019-01-01 | B5: 废包装桶 | H5: 0.306 | I5: 方剑其 | J5: 2018年
A6: 2019-01-02 | B6: 废包装桶 | J6: 0.306吨
A7: 2019-01-03 | B7: 废包装桶
A8: 2019-01-04 | B8: 废包装桶
A9: 2019-01-05 | B9: 废包装桶
A10: 2019-01-06 | B10: 废包装桶
A11: 2019-01-07 | B11: 废包装桶
A12: 2019-01-08 | B12: 废包装桶
A13: 2019-01-09 | B13: 废包装桶
A14: 2019-01-10 | B14: 废包装桶
A15: 2019-01-11 | B15: 废包装桶
A16: 2019-01-12 | B16: 废包装桶
A17: 2019-01-13 | B17: 废包装桶
A18: 2019-01-14 | B18: 废包装桶
A19: 2019-01-15 | B19: 废包装桶
A20: 2019-01-16 | B20: 废包装桶
A21: 2019-01-17 | B21: 废包装桶
A22: 2019-01-18 | B22: 废包装桶
A23: 2019-01-19 | B23: 废包装桶
A24: 2019-01-20 | B24: 废包装桶
A25: 2019-01-21 | B25: 废包装桶
A26: 2019-01-22 | B26: 废包装桶
A27: 2019-01-23 | B27: 废包装桶
A28: 2019-01-24 | B28: 废包装桶
A29: 2019-01-25 | B29: 废包装桶
A30: 2019-01-26 | B30: 废包装桶
A31: 2019-01-27 | B31: 废包装桶
A32: 2019-01-28 | B32: 废包装桶
A33: 2019-01-29 | B33: 废包装桶
A34: 2019-01-30 | B34: 废包装桶
A35: 2019-01-31 | B35: 废包装桶
A36: 合计 | C36: =C34 -> 0 | F36: =F34 -> 0 | H36: =H5 -> 0.306 | K36: 危废填报截止时间
A37: 备注：2017年7月24日起开始统计
A40: 2019-02-01 | B40: 废包装桶
A41: 2019-02-02 | B41: 废包装桶
A42: 2019-02-03 | B42: 废包装桶
A43: 2019-02-04 | B43: 废包装桶
A44: 2019-02-05 | B44: 废包装桶
A45: 2019-02-06 | B45: 废包装桶
A46: 2019-02-07 | B46: 废包装桶
A47: 2019-02-08 | B47: 废包装桶
A48: 2019-02-09 | B48: 废包装桶
A49: 2019-02-10 | B49: 废包装桶
A50: 2019-02-11 | B50: 废包装桶
A51: 2019-02-12 | B51: 废包装桶
A52: 2019-02-13 | B52: 废包装桶
A53: 2019-02-14 | B53: 废包装桶
A54: 2019-02-15 | B54: 废包装桶
A55: 2019-02-16 | B55: 废包装桶
A56: 2019-02-17 | B56: 废包装桶
A57: 2019-02-18 | B57: 废包装桶
A58: 2019-02-19 | B58: 废包装桶
A59: 2019-02-20 | B59: 废包装桶
A60: 2019-02-21 | B60: 废包装桶
A61: 2019-02-22 | B61: 废包装桶
A62: 2019-02-23 | B62: 废包装桶
A63: 2019-02-24 | B63: 废包装桶
A64: 2019-02-25 | B64: 废包装桶
A65: 2019-02-26 | B65: 废包装桶
A66: 2019-02-27 | B66: 废包装桶
A67: 2019-02-28 | B67: 废包装桶
A68: 合计 | C68: =SUM(C40:C67) -> 0 | F68: =SUM(F40:F67) -> 0 | H68: =H36 -> 0.306 | J68: 危废填报截止时间
A70: 2019-03-01 | B70: 废包装桶
A71: 2019-03-02 | B71: 废包装桶
A72: 2019-03-03 | B72: 废包装桶
A73: 2019-03-04 | B73: 废包装桶
A74: 2019-03-05 | B74: 废包装桶
A75: 2019-03-06 | B75: 废包装桶
A76: 2019-03-07 | B76: 废包装桶
A77: 2019-03-08 | B77: 废包装桶
A78: 2019-03-09 | B78: 废包装桶
A79: 2019-03-10 | B79: 废包装桶
A80: 2019-03-11 | B80: 废包装桶
A81: 2019-03-12 | B81: 废包装桶
A82: 2019-03-13 | B82: 废包装桶
A83: 2019-03-14 | B83: 废包装桶
A84: 2019-03-15 | B84: 废包装桶
A85: 2019-03-16 | B85: 废包装桶
A86: 2019-03-17 | B86: 废包装桶
A87: 2019-03-18 | B87: 废包装桶
A88: 2019-03-19 | B88: 废包装桶
A89: 2019-03-20 | B89: 废包装桶
A90: 2019-03-21 | B90: 废包装桶
A91: 2019-03-22 | B91: 废包装桶
A92: 2019-03-23 | B92: 废包装桶
A93: 2019-03-24 | B93: 废包装桶
A94: 2019-03-25 | B94: 废包装桶
A95: 2019-03-26 | B95: 废包装桶
A96: 2019-03-27 | B96: 废包装桶
A97: 2019-03-28 | B97: 废包装桶
A98: 2019-03-29 | B98: 废包装桶
A99: 2019-03-30 | B99: 废包装桶
A100: 2019-03-31 | B100: 废包装桶
A101: 合计 | C101: =SUM(C70:C100) -> 0 | F101: =SUM(F70:F100) -> 0 | H101: =H68 -> 0.306
A103: 2019-04-01 | B103: 废包装桶
A104: 2019-04-02 | B104: 废包装桶
A105: 2019-04-03 | B105: 废包装桶
A106: 2019-04-04 | B106: 废包装桶
A107: 2019-04-05 | B107: 废包装桶
A108: 2019-04-06 | B108: 废包装桶
A109: 2019-04-07 | B109: 废包装桶
A110: 2019-04-08 | B110: 废包装桶
A111: 2019-04-09 | B111: 废包装桶
A112: 2019-04-10 | B112: 废包装桶
A113: 2019-04-11 | B113: 废包装桶
A114: 2019-04-12 | B114: 废包装桶
A115: 2019-04-13 | B115: 废包装桶
A116: 2019-04-14 | B116: 废包装桶
A117: 2019-04-15 | B117: 废包装桶
A118: 2019-04-16 | B118: 废包装桶
A119: 2019-04-17 | B119: 废包装桶
A120: 2019-04-18 | B120: 废包装桶
A121: 2019-04-19 | B121: 废包装桶
A122: 2019-04-20 | B122: 废包装桶
A123: 2019-04-21 | B123: 废包装桶
A124: 2019-04-22 | B124: 废包装桶 | C124: 1.714 | F124: 2.02 | G124: 湖州南太湖资源回收有限公司 | H124: =H101+C124-F124 -> 0 | I124: 方剑其
A125: 2019-04-23 | B125: 废包装桶
A126: 2019-04-24 | B126: 废包装桶
A127: 2019-04-25 | B127: 废包装桶
A128: 2019-04-26 | B128: 废包装桶 | C128: 0.06 | H128: =H124+C128-F128 -> 0.06 | I128: 方剑其
A129: 2019-04-27 | B129: 废包装桶
A130: 2019-04-28 | B130: 废包装桶
A131: 2019-04-29 | B131: 废包装桶
A132: 2019-04-30 | B132: 废包装桶
A134: 合计 | C134: 1.774 | F134: 2.02 | H134: =H128 -> 0.06
A135: 2019-05-01 | B135: 废包装桶
A136: 2019-05-02 | B136: 废包装桶
A137: 2019-05-03 | B137: 废包装桶
A138: 2019-05-04 | B138: 废包装桶
A139: 2019-05-05 | B139: 废包装桶
A140: 2019-05-06 | B140: 废包装桶
A141: 2019-05-07 | B141: 废包装桶
A142: 2019-05-08 | B142: 废包装桶
A143: 2019-05-09 | B143: 废包装桶
A144: 2019-05-10 | B144: 废包装桶
A145: 2019-05-11 | B145: 废包装桶
A146: 2019-05-12 | B146: 废包装桶
A147: 2019-05-13 | B147: 废包装桶
A148: 2019-05-14 | B148: 废包装桶
A149: 2019-05-15 | B149: 废包装桶
A150: 2019-05-16 | B150: 废包装桶
A151: 2019-05-17 | B151: 废包装桶
A152: 2019-05-18 | B152: 废包装桶
A153: 2019-05-19 | B153: 废包装桶
A154: 2019-05-20 | B154: 废包装桶
A155: 2019-05-21 | B155: 废包装桶
A156: 2019-05-22 | B156: 废包装桶
A157: 2019-05-23 | B157: 废包装桶
A158: 2019-05-24 | B158: 废包装桶
A159: 2019-05-25 | B159: 废包装桶
A160: 2019-05-26 | B160: 废包装桶
A161: 2019-05-27 | B161: 废包装桶
A162: 2019-05-28 | B162: 废包装桶
A163: 2019-05-29 | B163: 废包装桶
A164: 2019-05-30 | B164: 废包装桶
A165: 2019-05-31 | B165: 废包装桶
A166: 合计 | C166: 0 | F166: 0 | H166: =H134 -> 0.06
A167: 2019-06-01 | B167: 废包装桶
A168: 2019-06-02 | B168: 废包装桶
A169: 2019-06-03 | B169: 废包装桶
A170: 2019-06-04 | B170: 废包装桶
A171: 2019-06-05 | B171: 废包装桶
A172: 2019-06-06 | B172: 废包装桶
A173: 2019-06-07 | B173: 废包装桶
A174: 2019-06-08 | B174: 废包装桶
A175: 2019-06-09 | B175: 废包装桶
A176: 2019-06-10 | B176: 废包装桶
A177: 2019-06-11 | B177: 废包装桶
A178: 2019-06-12 | B178: 废包装桶
A179: 2019-06-13 | B179: 废包装桶
A180: 2019-06-14 | B180: 废包装桶
A181: 2019-06-15 | B181: 废包装桶
A182: 2019-06-16 | B182: 废包装桶
A183: 2019-06-17 | B183: 废包装桶
A184: 2019-06-18 | B184: 废包装桶
A185: 2019-06-19 | B185: 废包装桶
A186: 2019-06-20 | B186: 废包装桶
A187: 2019-06-21 | B187: 废包装桶
A188: 2019-06-22 | B188: 废包装桶
A189: 2019-06-23 | B189: 废包装桶
A190: 2019-06-24 | B190: 废包装桶
A191: 2019-06-25 | B191: 废包装桶
A192: 2019-06-26 | B192: 废包装桶
A193: 2019-06-27 | B193: 废包装桶
A194: 2019-06-28 | B194: 废包装桶
A195: 2019-06-29 | B195: 废包装桶
A196: 2019-06-30 | B196: 废包装桶
A198: 合计 | C198: =SUM(C167:C197) -> 0 | F198: =SUM(F167:F197) -> 0 | H198: =H166 -> 0.06
A199: 2019-07-01 | B199: 废包装桶
A200: 2019-07-02 | B200: 废包装桶
A201: 2019-07-03 | B201: 废包装桶
A202: 2019-07-04 | B202: 废包装桶
A203: 2019-07-05 | B203: 废包装桶
A204: 2019-07-06 | B204: 废包装桶
A205: 2019-07-07 | B205: 废包装桶
A206: 2019-07-08 | B206: 废包装桶
... 182 more rows

Sheet 2019年月度统计
A1: 生产过程产生的固体废物利用及处置情况（按日填写）股份 ( 2019)
A2: 日期 | B2: 固 体 废 物 名 称 | C2: 数量（吨） | D2: 利 用 情 况 | F2: 处 置 情 况 | H2: 累计存储数量（吨） | I2: 记录人签字
D3: 利用数量 | E3: 去 向 | F3: 处置数量 | G3: 去 向
D4: （吨） | F4: （吨） | J4: 201812
A5: 1月份 | B5: 废包装桶 | C5: ='2019年 '!C36 -> 0 | F5: ='2019年 '!F36 -> 0 | H5: ='2019年 '!H36 -> 0.306 | I5: 方剑其 | J5: 0.306吨
A6: 2月份 | B6: 废包装桶 | C6: ='2019年 '!C68 -> 0 | F6: ='2019年 '!F68 -> 0 | H6: =H5 -> 0.306 | I6: 方剑其
A7: 3月份 | B7: 废包装桶 | C7: ='2019年 '!C101 -> 0 | F7: ='2019年 '!F101 -> 0 | H7: =H6 -> 0.306 | I7: 方剑其
A8: 4月份 | B8: 废包装桶 | C8: ='2019年 '!C134 -> 1.774 | F8: ='2019年 '!F134 -> 2.02 | G8: ='2019年 '!G124 -> 湖州南太湖资源回收有限公司 | H8: ='2019年 '!H134 -> 0.06 | I8: 方剑其
A9: 5月份 | B9: 废包装桶 | C9: ='2019年 '!C166 -> 0 | F9: ='2019年 '!F166 -> 0 | H9: ='2019年 '!H166 -> 0.06 | I9: 方剑其
A10: 6月份 | B10: 废包装桶 | C10: 0 | F10: 0 | H10: =H9 -> 0.06 | I10: 方剑其
A11: 7月份 | B11: 废包装桶 | C11: ='2019年 '!C230 -> 0 | F11: ='2019年 '!F230 -> 0 | H11: ='2019年 '!H230 -> 0.06 | I11: 方剑其
A12: 8月份 | B12: 废包装桶 | C12: ='2019年 '!C262 -> 0 | F12: ='2019年 '!F262 -> 0 | H12: ='2019年 '!H262 -> 0.06 | I12: 方剑其
A13: 9月份 | B13: 废包装桶 | C13: ='2019年 '!C294 -> 2.32 | F13: ='2019年 '!F294 -> 2.38 | G13: =G8 -> 湖州南太湖资源回收有限公司 | H13: ='2019年 '!H294 -> 0 | I13: 方剑其
A14: 10月份 | B14: 废包装桶 | C14: ='2019年 '!C326 -> 0 | F14: ='2019年 '!F326 -> 0 | H14: ='2019年 '!H326 -> 0 | I14: 方剑其
A15: 11月份 | B15: 废包装桶 | C15: ='2019年 '!C358 -> 1.89 | F15: ='2019年 '!F358 -> 1.89 | G15: 湖州南太湖资源回收有限公司 | H15: ='2019年 '!H358 -> 0 | I15: 方剑其
A16: 12月份 | B16: 废包装桶 | C16: ='2019年 '!C390 -> 0 | F16: ='2019年 '!F390 -> 0 | H16: ='2019年 '!H390 -> 0 | I16: 方剑其
A17: 合计 | C17: =SUM(C5:C16) -> 5.984 | F17: =SUM(F5:F16) -> 6.29 | H17: =H15 -> 0

Sheet 2020年
A1: 生产过程产生的固体废物利用及处置情况（按日填写）股份
A2: 日期 | B2: 固 体 废 物 名 称 | C2: 数量（吨） | D2: 利 用 情 况 | F2: 处 置 情 况 | H2: 累计存储数量（吨） | I2: 记录人签字
D3: 利用数量 | E3: 去 向 | F3: 处置数量 | G3: 去 向
D4: （吨） | F4: （吨）
A5: 2020-01-01 | B5: 废包装桶 | J5: 2018年 | L5: ='2019年月度统计 '!H17 -> 0
A6: 2020-01-02 | B6: 废包装桶 | J6: 0.306吨
A7: 2020-01-03 | B7: 废包装桶
A8: 2020-01-04 | B8: 废包装桶
A9: 2020-01-05 | B9: 废包装桶
A10: 2020-01-06 | B10: 废包装桶
A11: 2020-01-07 | B11: 废包装桶
A12: 2020-01-08 | B12: 废包装桶
A13: 2020-01-09 | B13: 废包装桶
A14: 2020-01-10 | B14: 废包装桶
A15: 2020-01-11 | B15: 废包装桶
A16: 2020-01-12 | B16: 废包装桶
A17: 2020-01-13 | B17: 废包装桶
A18: 2020-01-14 | B18: 废包装桶
A19: 2020-01-15 | B19: 废包装桶
A20: 2020-01-16 | B20: 废包装桶
A21: 2020-01-17 | B21: 废包装桶
A22: 2020-01-18 | B22: 废包装桶
A23: 2020-01-19 | B23: 废包装桶
A24: 2020-01-20 | B24: 废包装桶
A25: 2020-01-21 | B25: 废包装桶
A26: 2020-01-22 | B26: 废包装桶
A27: 2020-01-23 | B27: 废包装桶
A28: 2020-01-24 | B28: 废包装桶
A29: 2020-01-25 | B29: 废包装桶
A30: 2020-01-26 | B30: 废包装桶
A31: 2020-01-27 | B31: 废包装桶
A32: 2020-01-28 | B32: 废包装桶
A33: 2020-01-29 | B33: 废包装桶
A34: 2020-01-30 | B34: 废包装桶
A35: 2020-01-31 | B35: 废包装桶
A36: 合计 | C36: 0 | F36: 0 | H36: 0 | K36: 危废填报截止时间
A37: 备注：2017年7月24日起开始统计
A40: 2020-02-01 | B40: 废包装桶
A41: 2020-02-02 | B41: 废包装桶
A42: 2020-02-03 | B42: 废包装桶
A43: 2020-02-04 | B43: 废包装桶
A44: 2020-02-05 | B44: 废包装桶
A45: 2020-02-06 | B45: 废包装桶
A46: 2020-02-07 | B46: 废包装桶
A47: 2020-02-08 | B47: 废包装桶
A48: 2020-02-09 | B48: 废包装桶
A49: 2020-02-10 | B49: 废包装桶
A50: 2020-02-11 | B50: 废包装桶
A51: 2020-02-12 | B51: 废包装桶
A52: 2020-02-13 | B52: 废包装桶
A53: 2020-02-14 | B53: 废包装桶
A54: 2020-02-15 | B54: 废包装桶
A55: 2020-02-16 | B55: 废包装桶
A56: 2020-02-17 | B56: 废包装桶
A57: 2020-02-18 | B57: 废包装桶
A58: 2020-02-19 | B58: 废包装桶
A59: 2020-02-20 | B59: 废包装桶
A60: 2020-02-21 | B60: 废包装桶
A61: 2020-02-22 | B61: 废包装桶
A62: 2020-02-23 | B62: 废包装桶
A63: 2020-02-24 | B63: 废包装桶
A64: 2020-02-25 | B64: 废包装桶
A65: 2020-02-26 | B65: 废包装桶
A66: 2020-02-27 | B66: 废包装桶
A67: 2020-02-28 | B67: 废包装桶
A68: 2020-02-29 | B68: 废包装桶
A69: 合计 | C69: =SUM(C40:C67) -> 0 | F69: =SUM(F40:F67) -> 0 | H69: 0 | J69: 危废填报截止时间
A71: 2020-03-01 | B71: 废包装桶
A72: 2020-03-02 | B72: 废包装桶
A73: 2020-03-03 | B73: 废包装桶
A74: 2020-03-04 | B74: 废包装桶
A75: 2020-03-05 | B75: 废包装桶
A76: 2020-03-06 | B76: 废包装桶
A77: 2020-03-07 | B77: 废包装桶
A78: 2020-03-08 | B78: 废包装桶
A79: 2020-03-09 | B79: 废包装桶
A80: 2020-03-10 | B80: 废包装桶
A81: 2020-03-11 | B81: 废包装桶
A82: 2020-03-12 | B82: 废包装桶
A83: 2020-03-13 | B83: 废包装桶 | C83: 0.287 | H83: 0.287 | I83: 方剑其
A84: 2020-03-14 | B84: 废包装桶
A85: 2020-03-15 | B85: 废包装桶
A86: 2020-03-16 | B86: 废包装桶
A87: 2020-03-17 | B87: 废包装桶
A88: 2020-03-18 | B88: 废包装桶
A89: 2020-03-19 | B89: 废包装桶 | C89: 1.373 | F89: 1.66 | G89: 浙江润淼再生资源有限公司 | H89: 0 | I89: 方剑其
A90: 2020-03-20 | B90: 废包装桶
A91: 2020-03-21 | B91: 废包装桶
A92: 2020-03-22 | B92: 废包装桶
A93: 2020-03-23 | B93: 废包装桶
A94: 2020-03-24 | B94: 废包装桶
A95: 2020-03-25 | B95: 废包装桶
A96: 2020-03-26 | B96: 废包装桶
A97: 2020-03-27 | B97: 废包装桶
A98: 2020-03-28 | B98: 废包装桶
A99: 2020-03-29 | B99: 废包装桶
A100: 2020-03-30 | B100: 废包装桶
A101: 2020-03-31 | B101: 废包装桶
A102: 合计 | C102: =SUM(C71:C101) -> 1.66 | F102: =SUM(F71:F101) -> 1.66 | H102: =H88 -> 0
A104: 2020-04-01 | B104: 废包装桶
A105: 2020-04-02 | B105: 废包装桶
A106: 2020-04-03 | B106: 废包装桶
A107: 2020-04-04 | B107: 废包装桶
A108: 2020-04-05 | B108: 废包装桶
A109: 2020-04-06 | B109: 废包装桶
A110: 2020-04-07 | B110: 废包装桶
A111: 2020-04-08 | B111: 废包装桶
A112: 2020-04-09 | B112: 废包装桶
A113: 2020-04-10 | B113: 废包装桶
A114: 2020-04-11 | B114: 废包装桶
A115: 2020-04-12 | B115: 废包装桶
A116: 2020-04-13 | B116: 废包装桶
A117: 2020-04-14 | B117: 废包装桶
A118: 2020-04-15 | B118: 废包装桶
A119: 2020-04-16 | B119: 废包装桶
A120: 2020-04-17 | B120: 废包装桶
A121: 2020-04-18 | B121: 废包装桶
A122: 2020-04-19 | B122: 废包装桶 | C122: 0.59 | H122: =C122 -> 0.59 | I122: 方剑其
A123: 2020-04-20 | B123: 废包装桶
A124: 2020-04-21 | B124: 废包装桶
A125: 2020-04-22 | B125: 废包装桶
A126: 2020-04-23 | B126: 废包装桶
A127: 2020-04-24 | B127: 废包装桶
A128: 2020-04-25 | B128: 废包装桶
A129: 2020-04-26 | B129: 废包装桶
A130: 2020-04-27 | B130: 废包装桶
A131: 2020-04-28 | B131: 废包装桶
A132: 2020-04-29 | B132: 废包装桶
A133: 2020-04-30 | B133: 废包装桶
A135: 合计 | C135: =SUM(C104:C134) -> 0.59 | F135: =SUM(F122:F134) -> 0 | H135: =H122 -> 0.59
A136: 2020-05-01 | B136: 废包装桶
A137: 2020-05-02 | B137: 废包装桶
A138: 2020-05-03 | B138: 废包装桶
A139: 2020-05-04 | B139: 废包装桶
A140: 2020-05-05 | B140: 废包装桶
A141: 2020-05-06 | B141: 废包装桶
A142: 2020-05-07 | B142: 废包装桶
A143: 2020-05-08 | B143: 废包装桶
A144: 2020-05-09 | B144: 废包装桶 | C144: 0.11 | F144: 0.7 | G144: 浙江润淼再生资源有限公司 | H144: 0 | I144: 方剑其
A145: 2020-05-10 | B145: 废包装桶
A146: 2020-05-11 | B146: 废包装桶
A147: 2020-05-12 | B147: 废包装桶
A148: 2020-05-13 | B148: 废包装桶
A149: 2020-05-14 | B149: 废包装桶
A150: 2020-05-15 | B150: 废包装桶
A151: 2020-05-16 | B151: 废包装桶
A152: 2020-05-17 | B152: 废包装桶
A153: 2020-05-18 | B153: 废包装桶
A154: 2020-05-19 | B154: 废包装桶
A155: 2020-05-20 | B155: 废包装桶
A156: 2020-05-21 | B156: 废包装桶
A157: 2020-05-22 | B157: 废包装桶
A158: 2020-05-23 | B158: 废包装桶
A159: 2020-05-24 | B159: 废包装桶
A160: 2020-05-25 | B160: 废包装桶
A161: 2020-05-26 | B161: 废包装桶
A162: 2020-05-27 | B162: 废包装桶
A163: 2020-05-28 | B163: 废包装桶
A164: 2020-05-29 | B164: 废包装桶
A165: 2020-05-30 | B165: 废包装桶
A166: 2020-05-31 | B166: 废包装桶
A167: 合计 | C167: =C144 -> 0.11 | F167: =F144 -> 0.7 | H167: =H144 -> 0
A168: 2020-06-01 | B168: 废包装桶
A169: 2020-06-02 | B169: 废包装桶
A170: 2020-06-03 | B170: 废包装桶
A171: 2020-06-04 | B171: 废包装桶 | C171: 1.537 | F171: 1.537 | G171: 浙江润淼再生资源有限公司 | H171: 0 | I171: 方剑其
A172: 2020-06-05 | B172: 废包装桶
A173: 2020-06-06 | B173: 废包装桶
A174: 2020-06-07 | B174: 废包装桶
A175: 2020-06-08 | B175: 废包装桶
A176: 2020-06-09 | B176: 废包装桶 | C176: 0.017 | H176: 0.017 | I176: 方剑其
A177: 2020-06-10 | B177: 废包装桶
A178: 2020-06-11 | B178: 废包装桶
A179: 2020-06-12 | B179: 废包装桶
A180: 2020-06-13 | B180: 废包装桶
A181: 2020-06-14 | B181: 废包装桶
A182: 2020-06-15 | B182: 废包装桶
A183: 2020-06-16 | B183: 废包装桶
A184: 2020-06-17 | B184: 废包装桶
A185: 2020-06-18 | B185: 废包装桶 | C185: 0.467 | H185: =H176+C185 -> 0.484 | I185: 方剑其
A186: 2020-06-19 | B186: 废包装桶
A187: 2020-06-20 | B187: 废包装桶
A188: 2020-06-21 | B188: 废包装桶
A189: 2020-06-22 | B189: 废包装桶
A190: 2020-06-23 | B190: 废包装桶 | C190: 0.093 | H190: =H185+C190 -> 0.577 | I190: 方剑其
A191: 2020-06-24 | B191: 废包装桶
A192: 2020-06-25 | B192: 废包装桶
A193: 2020-06-26 | B193: 废包装桶
A194: 2020-06-27 | B194: 废包装桶
A195: 2020-06-28 | B195: 废包装桶
A196: 2020-06-29 | B196: 废包装桶
A197: 2020-06-30 | B197: 废包装桶
A199: 合计 | C199: =SUM(C168:C198) -> 2.114 | F199: =SUM(F168:F198) -> 1.537 | H199: =H190 -> 0.577
A200: 2020-07-01 | B200: 废包装桶
A201: 2020-07-02 | B201: 废包装桶
A202: 2020-07-03 | B202: 废包装桶
A203: 2020-07-04 | B203: 废包装桶
A204: 2020-07-05 | B204: 废包装桶
A205: 2020-07-06 | B205: 废包装桶
A206: 2020-07-07 | B206: 废包装桶
... 183 more rows

Sheet 2020年月度统计
A1: 生产过程产生的固体废物利用及处置情况（按日填写）股份 ( 2020)
A2: 日期 | B2: 固 体 废 物 名 称 | C2: 数量（吨） | D2: 利 用 情 况 | F2: 处 置 情 况 | H2: 累计存储数量（吨） | I2: 记录人签字
D3: 利用数量 | E3: 去 向 | F3: 处置数量 | G3: 去 向
D4: （吨） | F4: （吨） | J4: 201812
A5: 1月份 | B5: 废包装桶 | C5: 0 | F5: 0 | H5: 0 | I5: 方剑其 | J5: 0.306吨 | K5: ='2019年月度统计 '!H17 -> 0
A6: 2月份 | B6: 废包装桶 | C6: ='2020年 '!C69 -> 0 | F6: ='2020年 '!F69 -> 0 | H6: ='2020年 '!H69 -> 0 | I6: 方剑其
A7: 3月份 | B7: 废包装桶 | C7: ='2020年 '!C102 -> 1.66 | F7: ='2020年 '!F102 -> 1.66 | G7: 浙江润淼再生资源有限公司 | H7: ='2020年 '!H102 -> 0 | I7: 方剑其
A8: 4月份 | B8: 废包装桶 | C8: ='2020年 '!C135 -> 0.59 | F8: ='2020年 '!F135 -> 0 | H8: ='2020年 '!H135 -> 0.59 | I8: 方剑其
A9: 5月份 | B9: 废包装桶 | C9: 0.11 | F9: 0.7 | G9: 浙江润淼再生资源有限公司 | H9: 0 | I9: 方剑其
A10: 6月份 | B10: 废包装桶 | C10: ='2020年 '!C199 -> 2.114 | F10: ='2020年 '!F199 -> 1.537 | G10: 浙江润淼再生资源有限公司 | H10: ='2020年 '!H199 -> 0.577 | I10: 方剑其
A11: 7月份 | B11: 废包装桶 | C11: ='2020年 '!C231 -> 0.15 | F11: ='2020年 '!F231 -> 0 | H11: ='2020年 '!H231 -> 0.727 | I11: 方剑其
A12: 8月份 | B12: 废包装桶 | C12: ='2020年 '!C263 -> 0 | F12: ='2020年 '!F263 -> 0 | H12: ='2020年 '!H263 -> 0.727 | I12: 方剑其
A13: 9月份 | B13: 废包装桶 | C13: ='2020年 '!C295 -> 0.412 | F13: ='2020年 '!F295 -> 0.783 | G13: 浙江润淼再生资源有限公司 | H13: ='2020年 '!H295 -> 0.356 | I13: 方剑其
A14: 10月份 | B14: 废包装桶 | C14: ='2020年 '!C327 -> 0.227 | F14: ='2020年 '!F327 -> 0.583 | G14: 浙江润淼再生资源有限公司 | H14: ='2020年 '!H327 -> 0 | I14: 方剑其
A15: 11月份 | B15: 废包装桶 | C15: ='2020年 '!C359 -> 0.488 | F15: ='2020年 '!F359 -> 0 | H15: ='2020年 '!H359 -> 0.488 | I15: 诸美娟
A16: 12月份 | B16: 废包装桶 | C16: ='2020年 '!C391 -> 0.332 | F16: ='2020年 '!F391 -> 0.82 | G16: 浙江润淼再生资源有限公司 | H16: ='2020年 '!H391 -> 0 | I16: 诸美娟
A17: 合计 | C17: =SUM(C5:C16) -> 6.083 | F17: =SUM(F5:F16) -> 6.083 | H17: =H16 -> 0

Sheet 2021年
A1: 生产过程产生的固体废物利用及处置情况（按日填写）股份单位 单位（吨）
A2: 日期 | B2: 固 体 废 物 名 称 | C2: 产生数量 | D2: 自行处置数量 | E2: 委托利用、处置情况 | G2: 累计贮存数量 | H2: 备注 | I2: 填表人
E3: 委托利用数量 | F3: 委托处置数量
A4: 2021-01-01 | B4: 废包装桶 | J4: 2018年 | L4: ='2019年月度统计 '!H17 -> 0
A5: 2021-01-02 | B5: 废包装桶 | J5: 0.306吨
A6: 2021-01-03 | B6: 废包装桶
A7: 2021-01-04 | B7: 废包装桶
A8: 2021-01-05 | B8: 废包装桶
A9: 2021-01-06 | B9: 废包装桶
A10: 2021-01-07 | B10: 废包装桶
A11: 2021-01-08 | B11: 废包装桶
A12: 2021-01-09 | B12: 废包装桶
A13: 2021-01-10 | B13: 废包装桶
A14: 2021-01-11 | B14: 废包装桶
A15: 2021-01-12 | B15: 废包装桶
A16: 2021-01-13 | B16: 废包装桶
A17: 2021-01-14 | B17: 废包装桶
A18: 2021-01-15 | B18: 废包装桶
A19: 2021-01-16 | B19: 废包装桶
A20: 2021-01-17 | B20: 废包装桶
A21: 2021-01-18 | B21: 废包装桶
A22: 2021-01-19 | B22: 废包装桶 | C22: 0.403 | G22: =C22 -> 0.403 | I22: 诸美娟
A23: 2021-01-20 | B23: 废包装桶 | C23: 0.066 | G23: =G22+C23-F23 -> 0.469 | I23: 诸美娟
A24: 2021-01-21 | B24: 废包装桶
A25: 2021-01-22 | B25: 废包装桶
A26: 2021-01-23 | B26: 废包装桶
A27: 2021-01-24 | B27: 废包装桶
A28: 2021-01-25 | B28: 废包装桶
A29: 2021-01-26 | B29: 废包装桶
A30: 2021-01-27 | B30: 废包装桶
A31: 2021-01-28 | B31: 废包装桶
A32: 2021-01-29 | B32: 废包装桶
A33: 2021-01-30 | B33: 废包装桶
A34: 2021-01-31 | B34: 废包装桶
A35: 合计 | C35: =SUM(C22:C34) -> 0.469 | D35: =SUM(D22:D34) -> 0 | F35: 0 | G35: =G23 -> 0.469 | K35: 危废填报截止时间
A36: 备注：2017年7月24日起开始统计
A39: 2021-02-01 | B39: 废包装桶
A40: 2021-02-02 | B40: 废包装桶
A41: 2021-02-03 | B41: 废包装桶
A42: 2021-02-04 | B42: 废包装桶
A43: 2021-02-05 | B43: 废包装桶 | C43: 0.035 | G43: =G35+C43-F43 -> 0.504 | I43: 诸美娟
A44: 2021-02-06 | B44: 废包装桶
A45: 2021-02-07 | B45: 废包装桶
A46: 2021-02-08 | B46: 废包装桶
A47: 2021-02-09 | B47: 废包装桶
A48: 2021-02-10 | B48: 废包装桶
A49: 2021-02-11 | B49: 废包装桶
A50: 2021-02-12 | B50: 废包装桶
A51: 2021-02-13 | B51: 废包装桶
A52: 2021-02-14 | B52: 废包装桶
A53: 2021-02-15 | B53: 废包装桶
A54: 2021-02-16 | B54: 废包装桶
A55: 2021-02-17 | B55: 废包装桶
A56: 2021-02-18 | B56: 废包装桶
A57: 2021-02-19 | B57: 废包装桶
A58: 2021-02-20 | B58: 废包装桶
A59: 2021-02-21 | B59: 废包装桶
A60: 2021-02-22 | B60: 废包装桶
A61: 2021-02-23 | B61: 废包装桶
A62: 2021-02-24 | B62: 废包装桶 | C62: 0.0805 | G62: =G43+C62-F62 -> 0.5845 | I62: 诸美娟
A63: 2021-02-25 | B63: 废包装桶
A64: 2021-02-26 | B64: 废包装桶
A65: 2021-02-27 | B65: 废包装桶
A66: 2021-02-28 | B66: 废包装桶
A68: 合计 | C68: =SUM(C39:C66) -> 0.1155 | F68: =SUM(F39:F66) -> 0 | G68: =G62 -> 0.5845 | J68: 危废填报截止时间
A70: 2021-03-01 | B70: 废包装桶
A71: 2021-03-02 | B71: 废包装桶
A72: 2021-03-03 | B72: 废包装桶
A73: 2021-03-04 | B73: 废包装桶
A74: 2021-03-05 | B74: 废包装桶 | C74: 0.131 | G74: =G68+C74-F74 -> 0.7155 | I74: 诸美娟
A75: 2021-03-06 | B75: 废包装桶 | G75: =G74+C75-F75 -> 0.7155
A76: 2021-03-07 | B76: 废包装桶 | G76: 0.7155
A77: 2021-03-08 | B77: 废包装桶 | G77: 0.7155
A78: 2021-03-09 | B78: 废包装桶 | G78: 0.7155
A79: 2021-03-10 | B79: 废包装桶 | G79: 0.7155
A80: 2021-03-11 | B80: 废包装桶 | G80: 0.7155
A81: 2021-03-12 | B81: 废包装桶 | G81: 0.7155
A82: 2021-03-13 | B82: 废包装桶 | G82: 0.7155
A83: 2021-03-14 | B83: 废包装桶 | G83: 0.7155
A84: 2021-03-15 | B84: 废包装桶 | G84: 0.7155
A85: 2021-03-16 | B85: 废包装桶 | G85: 0.7155
A86: 2021-03-17 | B86: 废包装桶 | G86: 0.7155
A87: 2021-03-18 | B87: 废包装桶 | C87: 0.8445 | F87: 1.56 | G87: 0 | H87: 浙江润淼再生资源有限公司 | I87: 诸美娟
A88: 2021-03-19 | B88: 废包装桶 | C88: 0.015 | G88: 0.015 | I88: 诸美娟
A89: 2021-03-20 | B89: 废包装桶 | G89: 0.015
A90: 2021-03-21 | B90: 废包装桶 | G90: 0.015
A91: 2021-03-22 | B91: 废包装桶 | G91: 0.015
A92: 2021-03-23 | B92: 废包装桶 | G92: 0.015
A93: 2021-03-24 | B93: 废包装桶 | G93: 0.015
A94: 2021-03-25 | B94: 废包装桶 | G94: 0.015
A95: 2021-03-26 | B95: 废包装桶 | G95: 0.015
A96: 2021-03-27 | B96: 废包装桶 | G96: 0.015
A97: 2021-03-28 | B97: 废包装桶 | G97: 0.015
A98: 2021-03-29 | B98: 废包装桶 | G98: 0.015
A99: 2021-03-30 | B99: 废包装桶 | G99: 0.015
A100: 2021-03-31 | B100: 废包装桶 | G100: 0.015
A101: 合计 | C101: =SUM(C70:C100) -> 0.9905 | F101: =SUM(F70:F100) -> 1.56 | G101: =G100 -> 0.015
A103: 2021-04-01 | B103: 废包装桶
A104: 2021-04-02 | B104: 废包装桶 | C104: 0.085 | F104: 0 | G104: =G101+C104-F104 -> 0.1 | I104: 诸美娟
A105: 2021-04-03 | B105: 废包装桶 | G105: =G104+C105-F105 -> 0.1
A106: 2021-04-04 | B106: 废包装桶 | G106: 0.1
A107: 2021-04-05 | B107: 废包装桶 | G107: 0.1
A108: 2021-04-06 | B108: 废包装桶 | G108: 0.1
A109: 2021-04-07 | B109: 废包装桶 | G109: 0.1
A110: 2021-04-08 | B110: 废包装桶 | G110: 0.1
A111: 2021-04-09 | B111: 废包装桶 | C111: 0.047 | G111: 0.147 | I111: 诸美娟
A112: 2021-04-10 | B112: 废包装桶 | G112: 0.147
A113: 2021-04-11 | B113: 废包装桶 | G113: 0.147
A114: 2021-04-12 | B114: 废包装桶 | G114: 0.147
A115: 2021-04-13 | B115: 废包装桶 | G115: 0.147
A116: 2021-04-14 | B116: 废包装桶 | G116: 0.147
A117: 2021-04-15 | B117: 废包装桶 | G117: 0.147
A118: 2021-04-16 | B118: 废包装桶 | C118: 0.073 | G118: 0.22 | I118: 诸美娟
A119: 2021-04-17 | B119: 废包装桶 | G119: 0.22
A120: 2021-04-18 | B120: 废包装桶 | G120: 0.22
A121: 2021-04-19 | B121: 废包装桶 | G121: 0.22
A122: 2021-04-20 | B122: 废包装桶 | G122: 0.22
A123: 2021-04-21 | B123: 废包装桶 | G123: 0.22
A124: 2021-04-22 | B124: 废包装桶 | G124: 0.22
A125: 2021-04-23 | B125: 废包装桶 | C125: 0.019 | G125: 0.239 | I125: 诸美娟
A126: 2021-04-24 | B126: 废包装桶 | G126: 0.239
A127: 2021-04-25 | B127: 废包装桶 | G127: 0.239
A128: 2021-04-26 | B128: 废包装桶 | G128: 0.239
A129: 2021-04-27 | B129: 废包装桶 | G129: 0.239
A130: 2021-04-28 | B130: 废包装桶 | G130: 0.239
A131: 2021-04-29 | B131: 废包装桶 | G131: 0.239
A132: 2021-04-30 | B132: 废包装桶 | G132: 0.239
G133: 0.239
A134: 合计 | C134: =SUM(C103:C133) -> 0.224 | F134: =SUM(F121:F133) -> 0 | G134: =G132 -> 0.239
A135: 2021-05-01 | B135: 废包装桶 | G135: =G134+C135-F135 -> 0.239
A136: 2021-05-02 | B136: 废包装桶 | G136: 0.239
A137: 2021-05-03 | B137: 废包装桶 | G137: 0.239
A138: 2021-05-04 | B138: 废包装桶 | G138: 0.239
A139: 2021-05-05 | B139: 废包装桶 | G139: 0.239
A140: 2021-05-06 | B140: 废包装桶 | G140: 0.239
A141: 2021-05-07 | B141: 废包装桶 | G141: 0.239
A142: 2021-05-08 | B142: 废包装桶 | G142: 0.239
A143: 2021-05-09 | B143: 废包装桶 | G143: 0.239
A144: 2021-05-10 | B144: 废包装桶 | G144: 0.239
A145: 2021-05-11 | B145: 废包装桶 | G145: 0.239
A146: 2021-05-12 | B146: 废包装桶 | G146: 0.239
A147: 2021-05-13 | B147: 废包装桶 | G147: 0.239
A148: 2021-05-14 | B148: 废包装桶 | C148: 0.033 | G148: 0.272 | I148: 诸美娟
A149: 2021-05-15 | B149: 废包装桶 | G149: 0.272
A150: 2021-05-16 | B150: 废包装桶 | G150: 0.272
A151: 2021-05-17 | B151: 废包装桶 | G151: 0.272
A152: 2021-05-18 | B152: 废包装桶 | G152: 0.272
A153: 2021-05-19 | B153: 废包装桶 | G153: 0.272
A154: 2021-05-20 | B154: 废包装桶 | G154: 0.272
A155: 2021-05-21 | B155: 废包装桶 | C155: 0.418 | G155: 0.69 | I155: 诸美娟
A156: 2021-05-22 | B156: 废包装桶 | G156: 0.69
A157: 2021-05-23 | B157: 废包装桶 | G157: 0.69
A158: 2021-05-24 | B158: 废包装桶 | G158: 0.69
A159: 2021-05-25 | B159: 废包装桶 | G159: 0.69
A160: 2021-05-26 | B160: 废包装桶 | G160: 0.69
A161: 2021-05-27 | B161: 废包装桶 | G161: 0.69
A162: 2021-05-28 | B162: 废包装桶 | G162: 0.69
A163: 2021-05-29 | B163: 废包装桶 | G163: 0.69
A164: 2021-05-30 | B164: 废包装桶 | G164: 0.69
A165: 2021-05-31 | B165: 废包装桶 | G165: 0.69
A166: 合计 | C166: =SUM(C135:C165) -> 0.451 | F166: =SUM(F135:F165) -> 0 | G166: =G165 -> 0.69
A167: 2021-06-01 | B167: 废包装桶 | G167: =G166-C167-F167 -> 0.69
A168: 2021-06-02 | B168: 废包装桶 | G168: 0.69
A169: 2021-06-03 | B169: 废包装桶 | G169: 0.69
A170: 2021-06-04 | B170: 废包装桶 | G170: 0.69
A171: 2021-06-05 | B171: 废包装桶 | G171: 0.69
A172: 2021-06-06 | B172: 废包装桶 | G172: 0.69
A173: 2021-06-07 | B173: 废包装桶 | G173: 0.69
A174: 2021-06-08 | B174: 废包装桶 | G174: 0.69
A175: 2021-06-09 | B175: 废包装桶 | G175: 0.69
A176: 2021-06-10 | B176: 废包装桶 | G176: 0.69
A177: 2021-06-11 | B177: 废包装桶 | G177: 0.69
A178: 2021-06-12 | B178: 废包装桶 | G178: 0.69
A179: 2021-06-13 | B179: 废包装桶 | G179: 0.69
A180: 2021-06-14 | B180: 废包装桶 | G180: 0.69
A181: 2021-06-15 | B181: 废包装桶 | G181: 0.69
A182: 2021-06-16 | B182: 废包装桶 | G182: 0.69
A183: 2021-06-17 | B183: 废包装桶 | G183: 0.69
A184: 2021-06-18 | B184: 废包装桶 | C184: 0.049 | G184: =G183+C184-F184 -> 0.739 | I184: 诸美娟
A185: 2021-06-19 | B185: 废包装桶 | G185: =G184-C185-F185 -> 0.739
A186: 2021-06-20 | B186: 废包装桶 | G186: 0.739
A187: 2021-06-21 | B187: 废包装桶 | G187: 0.739
A188: 2021-06-22 | B188: 废包装桶 | G188: 0.739
A189: 2021-06-23 | B189: 废包装桶 | G189: 0.739
A190: 2021-06-24 | B190: 废包装桶 | G190: 0.739
A191: 2021-06-25 | B191: 废包装桶 | G191: 0.739
A192: 2021-06-26 | B192: 废包装桶 | G192: 0.739
A193: 2021-06-27 | B193: 废包装桶 | G193: 0.739
A194: 2021-06-28 | B194: 废包装桶 | G194: 0.739
A195: 2021-06-29 | B195: 废包装桶 | G195: 0.739
A196: 2021-06-30 | B196: 废包装桶 | G196: 0.739
G197: 0.739
A198: 合计 | C198: =SUM(C167:C197) -> 0.049 | F198: =SUM(F167:F197) -> 0 | G198: =G196 -> 0.739
A199: 2021-07-01 | B199: 废包装桶 | G199: =G197 -> 0.739
A200: 2021-07-02 | B200: 废包装桶 | C200: 0.045 | G200: =G199+C200 -> 0.784 | I200: 诸美娟
A201: 2021-07-03 | B201: 废包装桶 | G201: =G200+C202-F202 -> 0.784
A202: 2021-07-04 | B202: 废包装桶 | G202: =G201+C203-F203 -> 0.784
A203: 2021-07-05 | B203: 废包装桶 | G203: =G202+C204-F204 -> 0.784
A204: 2021-07-06 | B204: 废包装桶 | G204: =G203+C205-F205 -> 0.784
A205: 2021-07-07 | B205: 废包装桶 | G205: 0.784
... 183 more rows

Sheet 2021年月度统计
A1: 生产过程产生的固体废物利用及处置情况（按日填写）股份 ( 2021) 单位（吨）
A2: 日期 | B2: 固 体 废 物 名 称 | C2: 产生数量 | D2: 自行处置数量 | E2: 委托利用、处置情况 | G2: 累计贮存数量 | H2: 备注 | I2: 填表人
E3: 委托利用数量 | F3: 委托处置数量
A4: 1月份 | B4: 废包装桶 | C4: ='2021年 '!C35 -> 0.469 | F4: 0 | G4: ='2021年 '!G35 -> 0.469 | I4: 诸美娟 | J4: 0.306吨
A5: 2月份 | B5: 废包装桶 | C5: ='2021年 '!C68 -> 0.1155 | F5: 0 | G5: ='2021年 '!G68 -> 0.5845 | I5: 诸美娟
A6: 3月份 | B6: 废包装桶 | C6: ='2021年 '!C101 -> 0.9905 | F6: ='2021年 '!F101 -> 1.56 | G6: ='2021年 '!G101 -> 0.015 | H6: 浙江润淼再生资源有限公司 | I6: 诸美娟
A7: 4月份 | B7: 废包装桶 | C7: ='2021年 '!C134 -> 0.224 | F7: ='2021年 '!F134 -> 0 | G7: ='2021年 '!G134 -> 0.239 | I7: 诸美娟
A8: 5月份 | B8: 废包装桶 | C8: ='2021年 '!C166 -> 0.451 | F8: ='2021年 '!F166 -> 0 | G8: ='2021年 '!G166 -> 0.69 | I8: 诸美娟 | K8: 15只
A9: 6月份 | B9: 废包装桶 | C9: ='2021年 '!C198 -> 0.049 | F9: ='2021年 '!F198 -> 0 | G9: ='2021年 '!G198 -> 0.739 | I9: 诸美娟
A10: 7月份 | B10: 废包装桶 | C10: ='2021年 '!C230 -> 1.2921 | F10: ='2021年 '!F230 -> 1.72 | G10: ='2021年 '!G230 -> 0.3111 | H10: 浙江润淼再生资源有限公司 | I10: 诸美娟
A11: 8月份 | B11: 废包装桶 | C11: ='2021年 '!C262 -> 0.225 | F11: ='2021年 '!F262 -> 0 | G11: ='2021年 '!G262 -> 0.5361 | I11: 诸美娟
A12: 9月份 | B12: 废包装桶 | C12: ='2021年 '!C294 -> 0 | F12: ='2021年 '!F294 -> 0 | G12: ='2021年 '!G294 -> 0.5361 | I12: 诸美娟
A13: 10月份 | B13: 废包装桶 | C13: ='2021年 '!C326 -> 0.033 | F13: ='2021年 '!F326 -> 0.5691 | G13: ='2021年 '!G326 -> 0 | H13: 浙江润淼再生资源有限公司 | I13: 诸美娟
A14: 11月份 | B14: 废包装桶 | C14: ='2021年 '!C358 -> 0.258 | F14: ='2021年 '!F358 -> 0 | G14: ='2021年 '!G358 -> 0.258 | I14: 诸美娟
A15: 12月份 | B15: 废包装桶 | C15: ='2021年 '!C390 -> 0.889 | F15: ='2021年 '!F390 -> 1.147 | G15: ='2021年 '!G390 -> 0 | H15: 浙江润淼再生资源有限公司 | I15: 诸美娟
A16: 合计 | C16: =SUM(C4:C15) -> 4.9961 | F16: =SUM(F4:F15) -> 4.9961 | G16: =G15 -> 0
E20: =C16-F16 -> 0

Sheet 2022年
A1: 生产过程产生的固体废物利用及处置情况（按日填写）股份单位 单位（吨）
A2: 日期 | B2: 固 体 废 物 名 称 | C2: 产生数量 | D2: 自行处置数量 | E2: 委托利用、处置情况 | G2: 累计贮存数量 | H2: 备注 | I2: 填表人
E3: 委托利用数量 | F3: 委托处置数量
A4: 2022-01-01 | B4: 废包装桶 | J4: 2018年 | L4: ='2019年月度统计 '!H17 -> 0
A5: 2022-01-02 | B5: 废包装桶 | J5: 0.306吨
A6: 2022-01-03 | B6: 废包装桶
A7: 2022-01-04 | B7: 废包装桶
A8: 2022-01-05 | B8: 废包装桶
A9: 2022-01-06 | B9: 废包装桶
A10: 2022-01-07 | B10: 废包装桶
A11: 2022-01-08 | B11: 废包装桶
A12: 2022-01-09 | B12: 废包装桶
A13: 2022-01-10 | B13: 废包装桶
A14: 2022-01-11 | B14: 废包装桶
A15: 2022-01-12 | B15: 废包装桶
A16: 2022-01-13 | B16: 废包装桶
A17: 2022-01-14 | B17: 废包装桶
A18: 2022-01-15 | B18: 废包装桶
A19: 2022-01-16 | B19: 废包装桶
A20: 2022-01-17 | B20: 废包装桶
A21: 2022-01-18 | B21: 废包装桶
A22: 2022-01-19 | B22: 废包装桶
A23: 2022-01-20 | B23: 废包装桶
A24: 2022-01-21 | B24: 废包装桶
A25: 2022-01-22 | B25: 废包装桶
A26: 2022-01-23 | B26: 废包装桶
A27: 2022-01-24 | B27: 废包装桶
A28: 2022-01-25 | B28: 废包装桶
A29: 2022-01-26 | B29: 废包装桶
A30: 2022-01-27 | B30: 废包装桶
A31: 2022-01-28 | B31: 废包装桶
A32: 2022-01-29 | B32: 废包装桶 | C32: 0.425 | G32: 0.425 | I32: 诸美娟
A33: 2022-01-30 | B33: 废包装桶
A34: 2022-01-31 | B34: 废包装桶
A35: 合计 | C35: =SUM(C22:C34) -> 0.425 | D35: =SUM(D22:D34) -> 0 | E35: 0 | F35: 0 | G35: =G32 -> 0.425 | K35: 危废填报截止时间
A36: 备注：2017年7月24日起开始统计
A39: 2022-02-01 | B39: 废包装桶
A40: 2022-02-02 | B40: 废包装桶
A41: 2022-02-03 | B41: 废包装桶
A42: 2022-02-04 | B42: 废包装桶
A43: 2022-02-05 | B43: 废包装桶
A44: 2022-02-06 | B44: 废包装桶
A45: 2022-02-07 | B45: 废包装桶
A46: 2022-02-08 | B46: 废包装桶
A47: 2022-02-09 | B47: 废包装桶
A48: 2022-02-10 | B48: 废包装桶
A49: 2022-02-11 | B49: 废包装桶
A50: 2022-02-12 | B50: 废包装桶
A51: 2022-02-13 | B51: 废包装桶
A52: 2022-02-14 | B52: 废包装桶
A53: 2022-02-15 | B53: 废包装桶
A54: 2022-02-16 | B54: 废包装桶
A55: 2022-02-17 | B55: 废包装桶
A56: 2022-02-18 | B56: 废包装桶 | C56: 0.049 | G56: =G35+C56 -> 0.474 | I56: 诸美娟
A57: 2022-02-19 | B57: 废包装桶
A58: 2022-02-20 | B58: 废包装桶
A59: 2022-02-21 | B59: 废包装桶
A60: 2022-02-22 | B60: 废包装桶
A61: 2022-02-23 | B61: 废包装桶
A62: 2022-02-24 | B62: 废包装桶 | C62: 0.291 | G62: =G56+C62 -> 0.765 | I62: 诸美娟
A63: 2022-02-25 | B63: 废包装桶 | C63: 0.133 | G63: =G62+C63 -> 0.898 | I63: 诸美娟
A64: 2022-02-26 | B64: 废包装桶
A65: 2022-02-27 | B65: 废包装桶
A66: 2022-02-28 | B66: 废包装桶
A68: 合计 | C68: =SUM(C39:C66) -> 0.473 | D68: =SUM(D39:D66) -> 0 | E68: =SUM(E39:E66) -> 0 | F68: =SUM(F39:F66) -> 0 | G68: =G63 -> 0.898 | J68: 危废填报截止时间
A69: 2022-03-01 | B69: 废包装桶
A70: 2022-03-02 | B70: 废包装桶
A71: 2022-03-03 | B71: 废包装桶
A72: 2022-03-04 | B72: 废包装桶 | C72: 0.18 | G72: =G68+C72 -> 1.078 | I72: 诸美娟
A73: 2022-03-05 | B73: 废包装桶
A74: 2022-03-06 | B74: 废包装桶
A75: 2022-03-07 | B75: 废包装桶 | C75: 0.062 | E75: 1.14 | G75: 0 | H75: 浙江润淼再生资源有限公司 | I75: 诸美娟
A76: 2022-03-08 | B76: 废包装桶
A77: 2022-03-09 | B77: 废包装桶
A78: 2022-03-10 | B78: 废包装桶
A79: 2022-03-11 | B79: 废包装桶
A80: 2022-03-12 | B80: 废包装桶
A81: 2022-03-13 | B81: 废包装桶
A82: 2022-03-14 | B82: 废包装桶
A83: 2022-03-15 | B83: 废包装桶
A84: 2022-03-16 | B84: 废包装桶
A85: 2022-03-17 | B85: 废包装桶
A86: 2022-03-18 | B86: 废包装桶
A87: 2022-03-19 | B87: 废包装桶
A88: 2022-03-20 | B88: 废包装桶
A89: 2022-03-21 | B89: 废包装桶
A90: 2022-03-22 | B90: 废包装桶
A91: 2022-03-23 | B91: 废包装桶
A92: 2022-03-24 | B92: 废包装桶
A93: 2022-03-25 | B93: 废包装桶
A94: 2022-03-26 | B94: 废包装桶
A95: 2022-03-27 | B95: 废包装桶
A96: 2022-03-28 | B96: 废包装桶
A97: 2022-03-29 | B97: 废包装桶
A98: 2022-03-30 | B98: 废包装桶
A99: 2022-03-31 | B99: 废包装桶
A100: 合计 | C100: =SUM(C69:C99) -> 0.242 | D100: =SUM(D69:D99) -> 0 | E100: =SUM(E69:E99) -> 1.14 | F100: =SUM(F69:F99) -> 0 | G100: =G99 -> 0
A101: 2022-04-01 | B101: 废包装桶
A102: 2022-04-02 | B102: 废包装桶
A103: 2022-04-03 | B103: 废包装桶
A104: 2022-04-04 | B104: 废包装桶
A105: 2022-04-05 | B105: 废包装桶
A106: 2022-04-06 | B106: 废包装桶
A107: 2022-04-07 | B107: 废包装桶
A108: 2022-04-08 | B108: 废包装桶
A109: 2022-04-09 | B109: 废包装桶
A110: 2022-04-10 | B110: 废包装桶
A111: 2022-04-11 | B111: 废包装桶
A112: 2022-04-12 | B112: 废包装桶
A113: 2022-04-13 | B113: 废包装桶
A114: 2022-04-14 | B114: 废包装桶
A115: 2022-04-15 | B115: 废包装桶
A116: 2022-04-16 | B116: 废包装桶
A117: 2022-04-17 | B117: 废包装桶
A118: 2022-04-18 | B118: 废包装桶
A119: 2022-04-19 | B119: 废包装桶
A120: 2022-04-20 | B120: 废包装桶
A121: 2022-04-21 | B121: 废包装桶
A122: 2022-04-22 | B122: 废包装桶
A123: 2022-04-23 | B123: 废包装桶
A124: 2022-04-24 | B124: 废包装桶
A125: 2022-04-25 | B125: 废包装桶
A126: 2022-04-26 | B126: 废包装桶
A127: 2022-04-27 | B127: 废包装桶 | C127: 0.016 | G127: 0.016 | I127: 诸美娟
A128: 2022-04-28 | B128: 废包装桶
A129: 2022-04-29 | B129: 废包装桶 | C129: =0.205 -> 0.205 | G129: =G127+C129 -> 0.221 | I129: 诸美娟
A130: 2022-04-30 | B130: 废包装桶
G131: =G130+C131-F131 -> 0
A132: 合计 | C132: =SUM(C101:C131) -> 0.221 | D132: =SUM(D101:D131) -> 0 | E132: =SUM(E101:E131) -> 0 | F132: =SUM(F119:F131) -> 0 | G132: =G129 -> 0.221
A133: 2022-05-01 | B133: 废包装桶
A134: 2022-05-02 | B134: 废包装桶
A135: 2022-05-03 | B135: 废包装桶
A136: 2022-05-04 | B136: 废包装桶
A137: 2022-05-05 | B137: 废包装桶
A138: 2022-05-06 | B138: 废包装桶
A139: 2022-05-07 | B139: 废包装桶
A140: 2022-05-08 | B140: 废包装桶
A141: 2022-05-09 | B141: 废包装桶
A142: 2022-05-10 | B142: 废包装桶
A143: 2022-05-11 | B143: 废包装桶
A144: 2022-05-12 | B144: 废包装桶
A145: 2022-05-13 | B145: 废包装桶
A146: 2022-05-14 | B146: 废包装桶
A147: 2022-05-15 | B147: 废包装桶
A148: 2022-05-16 | B148: 废包装桶 | C148: 1.855 | E148: 2.076 | G148: 0 | H148: 浙江润淼再生资源有限公司 | I148: 诸美娟/胡才法
A149: 2022-05-17 | B149: 废包装桶
A150: 2022-05-18 | B150: 废包装桶
A151: 2022-05-19 | B151: 废包装桶
A152: 2022-05-20 | B152: 废包装桶
A153: 2022-05-21 | B153: 废包装桶
A154: 2022-05-22 | B154: 废包装桶
A155: 2022-05-23 | B155: 废包装桶
A156: 2022-05-24 | B156: 废包装桶
A157: 2022-05-25 | B157: 废包装桶
A158: 2022-05-26 | B158: 废包装桶
A159: 2022-05-27 | B159: 废包装桶 | C159: 0.214 | G159: 0.214 | I159: 诸美娟
A160: 2022-05-28 | B160: 废包装桶
A161: 2022-05-29 | B161: 废包装桶
A162: 2022-05-30 | B162: 废包装桶
A163: 2022-05-31 | B163: 废包装桶
A164: 合计 | C164: =SUM(C133:C163) -> 2.069 | D164: =SUM(D133:D163) -> 0 | E164: =SUM(E133:E163) -> 2.076 | F164: =SUM(F133:F163) -> 0 | G164: =G159 -> 0.214
A165: 2022-06-01 | B165: 废包装桶
A166: 2022-06-02 | B166: 废包装桶
A167: 2022-06-03 | B167: 废包装桶
A168: 2022-06-04 | B168: 废包装桶
A169: 2022-06-05 | B169: 废包装桶
A170: 2022-06-06 | B170: 废包装桶
A171: 2022-06-07 | B171: 废包装桶
A172: 2022-06-08 | B172: 废包装桶
A173: 2022-06-09 | B173: 废包装桶
A174: 2022-06-10 | B174: 废包装桶 | C174: 0.154 | G174: =G164+C174-F174 -> 0.368 | I174: 诸美娟
A175: 2022-06-11 | B175: 废包装桶
A176: 2022-06-12 | B176: 废包装桶
A177: 2022-06-13 | B177: 废包装桶
A178: 2022-06-14 | B178: 废包装桶 | C178: 0.112 | G178: =G174+C178 -> 0.48 | I178: 诸美娟
A179: 2022-06-15 | B179: 废包装桶
A180: 2022-06-16 | B180: 废包装桶
A181: 2022-06-17 | B181: 废包装桶 | C181: 0.033 | G181: =G178+C181 -> 0.513 | I181: 诸美娟
A182: 2022-06-18 | B182: 废包装桶
A183: 2022-06-19 | B183: 废包装桶
A184: 2022-06-20 | B184: 废包装桶
A185: 2022-06-21 | B185: 废包装桶
A186: 2022-06-22 | B186: 废包装桶
A187: 2022-06-23 | B187: 废包装桶
A188: 2022-06-24 | B188: 废包装桶
A189: 2022-06-25 | B189: 废包装桶
A190: 2022-06-26 | B190: 废包装桶
A191: 2022-06-27 | B191: 废包装桶
A192: 2022-06-28 | B192: 废包装桶
A193: 2022-06-29 | B193: 废包装桶
A194: 2022-06-30 | B194: 废包装桶
G195: =G194-C195-F195 -> 0
A196: 合计 | C196: =SUM(C165:C195) -> 0.299 | D196: =SUM(D165:D195) -> 0 | E196: =SUM(E165:E195) -> 0 | F196: =SUM(F165:F195) -> 0 | G196: =G181 -> 0.513
A197: 2022-07-01 | B197: 废包装桶 | C197: 0.133 | G197: =G196+C197-F197 -> 0.646 | I197: 诸美娟
A198: 2022-07-02 | B198: 废包装桶 | G198: =G197+C198-F198 -> 0.646
A199: 2022-07-03 | B199: 废包装桶 | G199: 0.646
A200: 2022-07-04 | B200: 废包装桶 | G200: 0.646
A201: 2022-07-05 | B201: 废包装桶 | G201: 0.646
A202: 2022-07-06 | B202: 废包装桶 | G202: 0.646
A203: 2022-07-07 | B203: 废包装桶 | G203: 0.646
... 185 more rows

Sheet 2022年月度统计
A1: 生产过程产生的固体废物利用及处置情况（按日填写）股份 ( 2022) 单位（吨）
A2: 日期 | B2: 固 体 废 物 名 称 | C2: 产生数量 | D2: 自行处置数量 | E2: 委托利用、处置情况 | G2: 累计贮存数量 | H2: 备注 | I2: 填表人
E3: 委托利用数量 | F3: 委托处置数量 | K3: 0
A4: 1月份 | B4: 废包装桶 | C4: ='2022年 '!C35 -> 0.425 | E4: ='2022年 '!E35 -> 0 | F4: ='2022年 '!F35 -> 0 | G4: ='2022年 '!G35 -> 0.425 | I4: 诸美娟
A5: 2月份 | B5: 废包装桶 | C5: ='2022年 '!C68 -> 0.473 | E5: ='2022年 '!E68 -> 0 | F5: ='2022年 '!F68 -> 0 | G5: ='2022年 '!G68 -> 0.898 | I5: 诸美娟
A6: 3月份 | B6: 废包装桶 | C6: ='2022年 '!C100 -> 0.242 | E6: ='2022年 '!E100 -> 1.14 | F6: ='2022年 '!F100 -> 0 | G6: ='2022年 '!G100 -> 0 | H6: 浙江润淼再生资源有限公司 | I6: 诸美娟
A7: 4月份 | B7: 废包装桶 | C7: ='2022年 '!C132 -> 0.221 | E7: ='2022年 '!E132 -> 0 | F7: ='2022年 '!F132 -> 0 | G7: ='2022年 '!G132 -> 0.221 | I7: 诸美娟
A8: 5月份 | B8: 废包装桶 | C8: ='2022年 '!C164 -> 2.069 | E8: ='2022年 '!E164 -> 2.076 | F8: ='2022年 '!F164 -> 0 | G8: ='2022年 '!G164 -> 0.214 | H8: 浙江润淼再生资源有限公司 | I8: 诸美娟/胡才法
A9: 6月份 | B9: 废包装桶 | C9: ='2022年 '!C196 -> 0.299 | E9: ='2022年 '!E196 -> 0 | F9: ='2022年 '!F196 -> 0 | G9: ='2022年 '!G196 -> 0.513 | I9: 诸美娟
A10: 7月份 | B10: 废包装桶 | C10: ='2022年 '!C228 -> 0.678 | E10: ='2022年 '!E228 -> 1.14 | F10: ='2022年 '!F228 -> 0 | G10: ='2022年 '!G228 -> 0.051 | H10: 浙江润淼再生资源有限公司 | I10: 诸美娟
A11: 8月份 | B11: 废包装桶 | C11: ='2022年 '!C260 -> 0.776 | E11: ='2022年 '!E260 -> 0 | F11: ='2022年 '!F260 -> 0 | G11: ='2022年 '!G260 -> 0.827 | I11: 诸美娟
A12: 9月份 | B12: 废包装桶 | C12: ='2022年 '!C292 -> 0.7205 | E12: ='2022年 '!E292 -> 1.5015 | F12: ='2022年 '!F292 -> 0 | G12: ='2022年 '!G292 -> 0.046 | H12: 浙江润淼再生资源有限公司 | I12: 诸美娟
A13: 10月份 | B13: 废包装桶 | C13: ='2022年 '!C324 -> 0.176 | E13: ='2022年 '!E324 -> 0 | F13: ='2022年 '!F356 -> 0 | G13: ='2022年 '!G324 -> 0.222 | I13: 诸美娟
A14: 11月份 | B14: 废包装桶 | C14: ='2022年 '!C356 -> 0.892 | E14: ='2022年 '!E356 -> 1.114 | F14: 0 | G14: ='2022年 '!G356 -> 0 | H14: 浙江润淼再生资源有限公司 | I14: 诸美娟 | K14: 0只
A15: 12月份 | B15: 废包装桶 | C15: ='2022年 '!C388 -> 0 | E15: ='2022年 '!E388 -> 0 | F15: ='2022年 '!F388 -> 0 | G15: ='2022年 '!G388 -> 0 | I15: 诸美娟
A16: 合计 | C16: =SUM(C4:C15) -> 6.9715 | D16: =SUM(D4:D15) -> 0 | E16: =SUM(E4:E15) -> 6.9715 | F16: =SUM(F4:F15) -> 0 | G16: =G14 -> 0

Sheet 2023年
A1: 生产过程产生的固体废物利用及处置情况（按日填写）股份单位 单位（吨）
A2: 日期 | B2: 固 体 废 物 名 称 | C2: 产生数量 | D2: 自行处置数量 | E2: 委托利用、处置情况 | G2: 累计贮存数量 | H2: 备注 | I2: 填表人
E3: 委托利用数量 | F3: 委托处置数量
A4: 2023-01-01 | B4: 废包装桶 | J4: ='2019年月度统计 '!H17 -> 0
A5: 2023-01-02 | B5: 废包装桶
A6: 2023-01-03 | B6: 废包装桶
A7: 2023-01-04 | B7: 废包装桶
A8: 2023-01-05 | B8: 废包装桶 | C8: 0.167 | G8: =C8 -> 0.167 | I8: 诸美娟
A9: 2023-01-06 | B9: 废包装桶 | C9: 0.208 | G9: =G8+C9-E9 -> 0.375 | I9: 诸美娟
A10: 2023-01-07 | B10: 废包装桶 | G10: =G9+C10-E10 -> 0.375
A11: 2023-01-08 | B11: 废包装桶 | G11: 0.375
A12: 2023-01-09 | B12: 废包装桶 | G12: 0.375
A13: 2023-01-10 | B13: 废包装桶 | G13: 0.375
A14: 2023-01-11 | B14: 废包装桶 | G14: 0.375
A15: 2023-01-12 | B15: 废包装桶 | G15: 0.375
A16: 2023-01-13 | B16: 废包装桶 | C16: 0.226 | G16: 0.601 | I16: 诸美娟
A17: 2023-01-14 | B17: 废包装桶 | G17: 0.601
A18: 2023-01-15 | B18: 废包装桶 | G18: 0.601
A19: 2023-01-16 | B19: 废包装桶 | G19: 0.601
A20: 2023-01-17 | B20: 废包装桶 | G20: 0.601
A21: 2023-01-18 | B21: 废包装桶 | G21: 0.601
A22: 2023-01-19 | B22: 废包装桶 | G22: 0.601
A23: 2023-01-20 | B23: 废包装桶 | G23: 0.601
A24: 2023-01-21 | B24: 废包装桶 | G24: 0.601
A25: 2023-01-22 | B25: 废包装桶 | G25: 0.601
A26: 2023-01-23 | B26: 废包装桶 | G26: 0.601
A27: 2023-01-24 | B27: 废包装桶 | G27: 0.601
A28: 2023-01-25 | B28: 废包装桶 | G28: 0.601
A29: 2023-01-26 | B29: 废包装桶 | G29: 0.601
A30: 2023-01-27 | B30: 废包装桶 | G30: 0.601
A31: 2023-01-28 | B31: 废包装桶 | G31: 0.601
A32: 2023-01-29 | B32: 废包装桶 | C32: 0.099 | G32: 0.70 | I32: 诸美娟
A33: 2023-01-30 | B33: 废包装桶 | G33: 0.70
A34: 2023-01-31 | B34: 废包装桶 | G34: 0.70
A35: 合计 | C35: =SUM(C4:C34) -> 0.7 | D35: =SUM(D4:D34) -> 0 | E35: =SUM(E4:E34) -> 0 | F35: =SUM(F22:F34) -> 0 | G35: =G32 -> 0.70
A36: 备注：2017年7月24日起开始统计
A39: 2023-02-01 | B39: 废包装桶
A40: 2023-02-02 | B40: 废包装桶
A41: 2023-02-03 | B41: 废包装桶
A42: 2023-02-04 | B42: 废包装桶
A43: 2023-02-05 | B43: 废包装桶
A44: 2023-02-06 | B44: 废包装桶
A45: 2023-02-07 | B45: 废包装桶
A46: 2023-02-08 | B46: 废包装桶
A47: 2023-02-09 | B47: 废包装桶
A48: 2023-02-10 | B48: 废包装桶
A49: 2023-02-11 | B49: 废包装桶
A50: 2023-02-12 | B50: 废包装桶
A51: 2023-02-13 | B51: 废包装桶
A52: 2023-02-14 | B52: 废包装桶
A53: 2023-02-15 | B53: 废包装桶
A54: 2023-02-16 | B54: 废包装桶
A55: 2023-02-17 | B55: 废包装桶
A56: 2023-02-18 | B56: 废包装桶
A57: 2023-02-19 | B57: 废包装桶
A58: 2023-02-20 | B58: 废包装桶
A59: 2023-02-21 | B59: 废包装桶
A60: 2023-02-22 | B60: 废包装桶
A61: 2023-02-23 | B61: 废包装桶
A62: 2023-02-24 | B62: 废包装桶
A63: 2023-02-25 | B63: 废包装桶 | C63: 0.384 | G63: =G35+C63 -> 1.084 | I63: 诸美娟
A64: 2023-02-26 | B64: 废包装桶
A65: 2023-02-27 | B65: 废包装桶
A66: 2023-02-28 | B66: 废包装桶
A68: 合计 | C68: =SUM(C39:C66) -> 0.384 | D68: 0 | E68: 0 | F68: 0 | G68: =G63 -> 1.084
A69: 2023-03-01 | B69: 废包装桶
A70: 2023-03-02 | B70: 废包装桶 | C70: 0.516 | E70: 1.60 | G70: =G68+C70-E70 -> 0 | H70: 嘉兴市固体废物处置有限责任公司 | I70: 诸美娟
A71: 2023-03-03 | B71: 废包装桶 | G71: =G70+C71-E71 -> 0
A72: 2023-03-04 | B72: 废包装桶 | G72: =G71+C72-F72 -> 0
A73: 2023-03-05 | B73: 废包装桶 | G73: =G72+C73-F73 -> 0
A74: 2023-03-06 | B74: 废包装桶 | G74: 0
A75: 2023-03-07 | B75: 废包装桶 | G75: 0
A76: 2023-03-08 | B76: 废包装桶 | G76: 0
A77: 2023-03-09 | B77: 废包装桶 | G77: 0
A78: 2023-03-10 | B78: 废包装桶 | C78: 0.016 | G78: 0.016 | I78: 诸美娟
A79: 2023-03-11 | B79: 废包装桶 | G79: 0.016
A80: 2023-03-12 | B80: 废包装桶 | G80: 0.016
A81: 2023-03-13 | B81: 废包装桶 | G81: 0.016
A82: 2023-03-14 | B82: 废包装桶 | G82: 0.016
A83: 2023-03-15 | B83: 废包装桶 | G83: 0.016
A84: 2023-03-16 | B84: 废包装桶 | G84: 0.016
A85: 2023-03-17 | B85: 废包装桶 | G85: 0.016
A86: 2023-03-18 | B86: 废包装桶 | G86: 0.016
A87: 2023-03-19 | B87: 废包装桶 | G87: 0.016
A88: 2023-03-20 | B88: 废包装桶 | G88: 0.016
A89: 2023-03-21 | B89: 废包装桶 | G89: 0.016
A90: 2023-03-22 | B90: 废包装桶 | G90: 0.016
A91: 2023-03-23 | B91: 废包装桶 | G91: 0.016
A92: 2023-03-24 | B92: 废包装桶 | G92: 0.016
A93: 2023-03-25 | B93: 废包装桶 | G93: 0.016
A94: 2023-03-26 | B94: 废包装桶 | G94: 0.016
A95: 2023-03-27 | B95: 废包装桶 | G95: 0.016
A96: 2023-03-28 | B96: 废包装桶 | G96: 0.016
A97: 2023-03-29 | B97: 废包装桶 | G97: 0.016
A98: 2023-03-30 | B98: 废包装桶 | G98: 0.016
A99: 2023-03-31 | B99: 废包装桶 | C99: 0.221 | G99: 0.237 | I99: 诸美娟
A100: 合计 | C100: =SUM(C69:C99) -> 0.753 | D100: 0 | E100: 1.60 | F100: 0.00 | G100: =G99 -> 0.237
A101: 2023-04-01 | B101: 废包装桶 | G101: 0.237
A102: 2023-04-02 | B102: 废包装桶 | G102: 0.237
A103: 2023-04-03 | B103: 废包装桶 | G103: 0.237
A104: 2023-04-04 | B104: 废包装桶 | G104: 0.237
A105: 2023-04-05 | B105: 废包装桶 | G105: 0.237
A106: 2023-04-06 | B106: 废包装桶 | G106: 0.237 | I106: 诸美娟
A107: 2023-04-07 | B107: 废包装桶 | C107: 0.112 | G107: =G106+C107-E107 -> 0.349
A108: 2023-04-08 | B108: 废包装桶 | G108: =G107+C108-E108 -> 0.349
A109: 2023-04-09 | B109: 废包装桶 | G109: 0.349
A110: 2023-04-10 | B110: 废包装桶 | G110: 0.349
A111: 2023-04-11 | B111: 废包装桶 | G111: 0.349
A112: 2023-04-12 | B112: 废包装桶 | G112: 0.349
A113: 2023-04-13 | B113: 废包装桶 | G113: 0.349
A114: 2023-04-14 | B114: 废包装桶 | G114: 0.349
A115: 2023-04-15 | B115: 废包装桶 | G115: 0.349
A116: 2023-04-16 | B116: 废包装桶 | G116: 0.349
A117: 2023-04-17 | B117: 废包装桶 | G117: 0.349
A118: 2023-04-18 | B118: 废包装桶 | G118: 0.349
A119: 2023-04-19 | B119: 废包装桶 | G119: 0.349
A120: 2023-04-20 | B120: 废包装桶 | G120: 0.349
A121: 2023-04-21 | B121: 废包装桶 | G121: 0.349
A122: 2023-04-22 | B122: 废包装桶 | G122: 0.349
A123: 2023-04-23 | B123: 废包装桶 | G123: 0.349
A124: 2023-04-24 | B124: 废包装桶 | G124: 0.349
A125: 2023-04-25 | B125: 废包装桶 | G125: 0.349
A126: 2023-04-26 | B126: 废包装桶 | G126: 0.349
A127: 2023-04-27 | B127: 废包装桶 | G127: 0.349
A128: 2023-04-28 | B128: 废包装桶 | G128: 0.349
A129: 2023-04-29 | B129: 废包装桶 | G129: 0.349
A130: 2023-04-30 | B130: 废包装桶 | G130: 0.349
G131: =G130+C131-F131 -> 0.349
A132: 合计 | C132: =SUM(C101:C131) -> 0.112 | D132: =SUM(D101:D131) -> 0 | E132: =SUM(E101:E131) -> 0 | F132: =SUM(F119:F131) -> 0 | G132: =G129 -> 0.349
A133: 2023-05-01 | B133: 废包装桶
A134: 2023-05-02 | B134: 废包装桶
A135: 2023-05-03 | B135: 废包装桶
A136: 2023-05-04 | B136: 废包装桶
A137: 2023-05-05 | B137: 废包装桶 | C137: 0.102 | G137: =G132+C137-E137 -> 0.451 | I137: 诸美娟
A138: 2023-05-06 | B138: 废包装桶 | G138: =G137+C138-E138 -> 0.451
A139: 2023-05-07 | B139: 废包装桶 | G139: =G138+C139-E139 -> 0.451
A140: 2023-05-08 | B140: 废包装桶 | G140: 0.451
A141: 2023-05-09 | B141: 废包装桶 | G141: 0.451
A142: 2023-05-10 | B142: 废包装桶 | G142: 0.451
A143: 2023-05-11 | B143: 废包装桶 | G143: 0.451
A144: 2023-05-12 | B144: 废包装桶 | C144: 0.256 | G144: 0.707 | I144: 诸美娟
A145: 2023-05-13 | B145: 废包装桶 | G145: 0.707
A146: 2023-05-14 | B146: 废包装桶 | G146: 0.707
A147: 2023-05-15 | B147: 废包装桶 | G147: 0.707
A148: 2023-05-16 | B148: 废包装桶 | G148: 0.707
A149: 2023-05-17 | B149: 废包装桶 | C149: 0.453 | E149: 0.892 | G149: 0.268 | H149: 嘉兴市固体废物处置有限责任公司 | I149: 诸美娟
A150: 2023-05-18 | B150: 废包装桶 | G150: 0.268
A151: 2023-05-19 | B151: 废包装桶 | C151: 0.064 | G151: 0.332 | I151: 诸美娟
A152: 2023-05-20 | B152: 废包装桶 | G152: 0.332
A153: 2023-05-21 | B153: 废包装桶 | G153: 0.332
A154: 2023-05-22 | B154: 废包装桶 | G154: 0.332
A155: 2023-05-23 | B155: 废包装桶 | G155: 0.332
A156: 2023-05-24 | B156: 废包装桶 | G156: 0.332
A157: 2023-05-25 | B157: 废包装桶 | G157: 0.332
A158: 2023-05-26 | B158: 废包装桶 | G158: 0.332
A159: 2023-05-27 | B159: 废包装桶 | G159: 0.332
A160: 2023-05-28 | B160: 废包装桶 | G160: 0.332
A161: 2023-05-29 | B161: 废包装桶 | G161: 0.332
A162: 2023-05-30 | B162: 废包装桶 | C162: 3.16 | E162: 3.16 | G162: 0.332 | H162: 嘉兴市固体废物处置有限责任公司 | I162: 方剑其
A163: 2023-05-31 | B163: 废包装桶 | G163: 0.332
A164: 合计 | C164: =SUM(C133:C163) -> 4.035 | D164: 0 | E164: 4.052 | F164: 0 | G164: =G159 -> 0.332
A165: 2023-06-01 | B165: 废包装桶 | G165: =G164+C165-E165 -> 0.332
A166: 2023-06-02 | B166: 废包装桶 | G166: =G165+C166-E166 -> 0.332
A167: 2023-06-03 | B167: 废包装桶 | G167: 0.332
A168: 2023-06-04 | B168: 废包装桶 | G168: 0.332
A169: 2023-06-05 | B169: 废包装桶 | G169: 0.332
A170: 2023-06-06 | B170: 废包装桶 | G170: 0.332
A171: 2023-06-07 | B171: 废包装桶 | G171: 0.332
A172: 2023-06-08 | B172: 废包装桶 | G172: 0.332
A173: 2023-06-09 | B173: 废包装桶 | G173: 0.332
A174: 2023-06-10 | B174: 废包装桶 | G174: 0.332
A175: 2023-06-11 | B175: 废包装桶 | G175: 0.332
A176: 2023-06-12 | B176: 废包装桶 | G176: 0.332
A177: 2023-06-13 | B177: 废包装桶 | G177: 0.332
A178: 2023-06-14 | B178: 废包装桶 | G178: 0.332
A179: 2023-06-15 | B179: 废包装桶 | G179: 0.332
A180: 2023-06-16 | B180: 废包装桶 | C180: 0.408 | G180: 0.74 | I180: 诸美娟
A181: 2023-06-17 | B181: 废包装桶 | G181: 0.74
A182: 2023-06-18 | B182: 废包装桶 | G182: 0.74
A183: 2023-06-19 | B183: 废包装桶 | G183: 0.74
A184: 2023-06-20 | B184: 废包装桶 | G184: 0.74
A185: 2023-06-21 | B185: 废包装桶 | G185: 0.74
A186: 2023-06-22 | B186: 废包装桶 | G186: 0.74
A187: 2023-06-23 | B187: 废包装桶 | G187: 0.74
A188: 2023-06-24 | B188: 废包装桶 | G188: 0.74
A189: 2023-06-25 | B189: 废包装桶 | G189: 0.74
A190: 2023-06-26 | B190: 废包装桶 | G190: 0.74
A191: 2023-06-27 | B191: 废包装桶 | G191: 0.74
A192: 2023-06-28 | B192: 废包装桶 | G192: 0.74
A193: 2023-06-29 | B193: 废包装桶 | C193: 0.13 | E193: 0.87 | G193: 0 | H193: 嘉兴市固体废物处置有限责任公司 | I193: 诸美娟
A194: 2023-06-30 | B194: 废包装桶 | G194: 0
G195: =G194-C195-F195 -> 0
A196: 合计 | C196: =SUM(C165:C195) -> 0.538 | D196: 0 | E196: 0.87 | F196: 0 | G196: =G194 -> 0
A197: 2023-07-01 | B197: 废包装桶
A198: 2023-07-02 | B198: 废包装桶
A199: 2023-07-03 | B199: 废包装桶
A200: 2023-07-04 | B200: 废包装桶
A201: 2023-07-05 | B201: 废包装桶
A202: 2023-07-06 | B202: 废包装桶
A203: 2023-07-07 | B203: 废包装桶 | C203: 0.032 | G203: 0.032 | I203: 诸美娟
... 184 more rows

Sheet 2023年月度统计
A1: 生产过程产生的固体废物利用及处置情况（按日填写）股份 ( 2023年) 单位（吨）
A2: 日期 | B2: 固 体 废 物 名 称 | C2: 产生数量 | D2: 自行处置数量 | E2: 委托利用、处置情况 | G2: 累计贮存数量 | H2: 备注 | I2: 填表人
E3: 委托利用数量 | F3: 委托处置数量 | J3: 0
A4: 1月份 | B4: 废包装桶 | C4: ='2023年 '!C35 -> 0.7 | E4: ='2023年 '!E35 -> 0 | G4: ='2023年 '!G35 -> 0.70 | I4: 诸美娟
A5: 2月份 | B5: 废包装桶 | C5: ='2023年 '!C68 -> 0.384 | E5: ='2023年 '!E68 -> 0 | G5: ='2023年 '!G68 -> 1.08 | I5: 诸美娟
A6: 3月份 | B6: 废包装桶 | C6: ='2023年 '!C100 -> 0.753 | E6: ='2023年 '!E100 -> 1.60 | G6: ='2023年 '!G100 -> 0.237 | H6: 嘉兴市固体废物处置有限责任公司 | I6: 诸美娟
A7: 4月份 | B7: 废包装桶 | C7: ='2023年 '!C132 -> 0.112 | E7: ='2023年 '!E132 -> 0 | G7: ='2023年 '!G132 -> 0.349 | I7: 诸美娟
A8: 5月份 | B8: 废包装桶 | C8: ='2023年 '!C164 -> 4.035 | E8: ='2023年 '!E164 -> 4.052 | G8: ='2023年 '!G164 -> 0.332 | H8: 嘉兴市固体废物处置有限责任公司 | I8: 诸美娟/方剑其
A9: 6月份 | B9: 废包装桶 | C9: ='2023年 '!C196 -> 0.538 | E9: ='2023年 '!E196 -> 0.87 | G9: ='2023年 '!G196 -> 0.000 | H9: 嘉兴市固体废物处置有限责任公司 | I9: 诸美娟
A10: 7月份 | B10: 废包装桶 | C10: ='2023年 '!C228 -> 0.048 | E10: ='2023年 '!E228 -> 0 | G10: ='2023年 '!G228 -> 0.048 | I10: 诸美娟 | J10: 3只
A11: 8月份 | B11: 废包装桶
A12: 9月份 | B12: 废包装桶
A13: 10月份 | B13: 废包装桶
A14: 11月份 | B14: 废包装桶
A15: 12月份 | B15: 废包装桶
A16: 合计 | C16: =SUM(C4:C15) -> 6.570 | D16: 0 | E16: 6.522 | F16: 0.00 | G16: =G10 -> 0.048

Sheet Sheet3
A2: 证明
A7: 9月5日（周六)计划股份公司废包装桶出仓一批，由于方剑其临时有事不能到厂进行废包装桶出仓，通知我来厂里对废包装桶出仓。由于是周六没打卡，实际进厂时间是8:00，装运完成10:30分左右。
